Workbook

Sheet Summary
A1: 0 | AA1: FieldName | AB1: Value-Type | AC1: Value-Check | AD1: Option | AE1: Content from | AF1: Content to | AG1: Status | AH1: Content to | AI1: Status
AA2: F_DELDATE1 | AB2: DATE | AC2: E | AE2: Invalid date | AG2: FINISHED | AH2: DATEFORMAT:31.12.2012 | AI2: FINISHED
B3: HEAD Sport GmbH - Wuhrkopfweg 1 | G3: HEAD - FORMULARZ ZAMÓWIENIA 2024/2025 | AA3: F_DELDATE2 | AB3: DATE | AC3: E | AE3: Invalid date
A4: Catalog | B4: Wuhrkopfweg 1 - A 6921 Kennelbach Austria | AA4: F_DELDATE3 | AB4: DATE | AC4: E | AE4: Invalid date
A5: 26PLRA2024 | B5: FN 64824 f | AA5: F_DELDATE4 | AB5: DATE | AC5: E | AE5: Invalid date
A6: SalesOrg | AA6: F_ORDER_DATE | AB6: DATE | AC6: E | AE6: Invalid date
A7: 2601 | AA7: #END#
A8: Country | B8: Sales rep | C8: 2694000|Sales Rep / Poland
B9: Nr klienta | C9: NEW | G9: Nr zamówienia | H9: PRE RACE 24/25 | J9: Data zamówienia
A11: Locked | B11: Nazwa firmy | G11: Adres wysyłki | J11: Data dostawy
A12: TRUE | B12: Adres | G12: Nazwa firmy
G13: Adres
B14: VAT-Number | G14: (jeśli inny)
A15: Email CS
B16: Kontakt | J16: Notatki
B18: Telefon
B19: E-Mail
G26: Valuta Date 1 | J26: Fax:
B27: Customer UID No. | G27: Valuta Date 2 | J27: Deliver date 4
B28: Speditions-Info | G28: Valuta Date 3 | J28: Data dostawy 2
B29: Payment Terms | G29: Valuta Date 4 | J29: Data dostawy 3
B31: =A1 -> 0 | C31: Sheet(s) in DEV mode
A32: #SUM_HEADER | D32: =N_WS_NETSCALE_NAME -> Zniżka | G32: Ilość | J32: Wartość
A33: #SUM_HEADER | B33: Product line
B34: NARTY & WIAZANIA | D34: ='NARTY & WIAZANIA'!$I$6 -> 0 | G34: ='NARTY & WIAZANIA'!A10 -> 0 | J34: ='NARTY & WIAZANIA'!B10 -> 0
B35: BUTY | D35: =BUTY!$I$6 -> 0 | G35: =BUTY!A10 -> 0 | J35: =BUTY!B10 -> 0
B36: KASKI | D36: =KASKI!$I$6 -> 0 | G36: =KASKI!A10 -> 0 | J36: =KASKI!B10 -> 0
B37: GOGLE | D37: =GOGLE!$I$6 -> 0 | G37: =GOGLE!A10 -> 0 | J37: =GOGLE!B10 -> 0
B38: KIJE | D38: =KIJE!$I$6 -> 0 | G38: =KIJE!A10 -> 0 | J38: =KIJE!B10 -> 0
B39: TORBY | D39: =TORBY!$I$6 -> 0 | G39: =TORBY!A10 -> 0 | J39: =TORBY!B10 -> 0
B40: ODZIEŻ RACE | D40: ='ODZIEŻ RACE'!$I$6 -> 0 | G40: ='ODZIEŻ RACE'!A10 -> 0 | J40: ='ODZIEŻ RACE'!B10 -> 0
A133: #SUM_TOTAL | B133: Total | G133: =SUM(G34:G132) -> 0 | J133: =SUM(J34:J132) -> 0
B136: Total | G136: =SUM(G133:I133) -> 0 | J136: =SUM(J133:L133) -> 0 | L136: PLN
L140: Version | M140: 1

Sheet NARTY & WIAZANIA
A1: #PRD | B1: #INPUT | C1: http://www.head.com/ | E1: ='NARTY & WIAZANIA'!D1 -> 0 | H1: #DD1 | I1: #DD1 | J1: #DD1 | K1: #DD1 | L1: #DD1 | M1: #DD1 | N1: #DD1 | O1: #DD1 | P1: #DD1 | Q1: #DD1 | R1: #DD1 | S1: #DD1 | T1: #DD1 | U1: #DD1 | AD1: #FIRST-ADDINFO-COL
A2: =SUM(A10:A10) -> 0 | B2: =SUM(B10:B10) -> 0
A3: B3 has to be empty!!! | C3: Nr klienta | D3: =IF(F_CUST_NO="","",F_CUST_NO) -> NEW | G3: Nr zamówienia | I3: =IF(F_ORDER_NO="","",F_ORDER_NO) -> PRE RACE 24/25 | P3: Data zamówienia | T3: =IF(F_ORDER_DATE<> "",F_ORDER_DATE,"") -> 
A4: Empty Lines: | B4: TRUE | C4: Nazwa firmy | D4: =IF(F_CUST_NAME="","",F_CUST_NAME) ->  | G4: Sales Rep. | I4: =IF(F_SALES_REP="","",F_SALES_REP) -> 2694000|Sales Rep / Poland | P4: Data dostawy | T4: =IF(F_DELDATE1<> "",F_DELDATE1,"") -> 
A5: Delivery Date Total: | B5: TRUE | C5: Adres | D5: =IF(F_CUST_ADDR="","",F_CUST_ADDR) ->  | T5: =IF(F_DELDATE2<> "",F_DELDATE2,"") -> 
A6: Delivery Date 1: | B6: TRUE | G6: Zniżka | T6: =IF(F_DELDATE3<> "",F_DELDATE3,"") -> 
A7: Delivery Date 2: | B7: TRUE
A8: Delivery Date 3: | B8: TRUE
C9: HEAD Sport GmbH - Wuhrkopfweg 1
A10: =SUM($V$20:$V$25)+SUM($V$28:$V$29)+SUM($V$33:$V$43)+SUM($V$47:$V$51)+SUM($V$53:$V$62)+SUM($V$65:$V$67)+SUM($V$70:$V$78) -> 0 | B10: =SUM($Z$20:$Z$25)+SUM($Z$28:$Z$29)+SUM($Z$33:$Z$43)+SUM($Z$47:$Z$51)+SUM($Z$53:$Z$62)+SUM($Z$65:$Z$67)+SUM($Z$70:$Z$78) -> 0 | C10: Wuhrkopfweg 1 - A 6921 Kennelbach Austria | F10: NARTY & WIAZANIA -kod prod. to link do zdjęcia!
A11: Reserved DD2-QTTY | B11: DD2-Amount | C11: FN 64824 f
A12: Reserved DD3-QTTY | B12: DD3-Amount
A13: Reserved DD4-QTTY | B13: DD4-Amount
A14: Reserved DD5-QTTY | B14: DD5-Amount
A15: Reserved DD6-QTTY | B15: DD6-Amount
A17: GH | B17: N:52| | C17: NARTY HEAD
A18: GH | B18: N:29| | C18: GS/SL
A19: H | B19: N:29.1|29 | C19: Kod Art. | E19: Model | F19: Cena Racing Netto | G19: Cena Racing Brutto | H19: 151 | I19: 156 | J19: 158 | K19: 165 | L19: 168 | M19: 176 | N19: 177 | O19: 181 | P19: 183 | Q19: 186 | R19: 188 | S19: 189 | T19: 191 | U19: 193 | V19: Ilość | W19: Rekomend. Cena Detaliczna | X19: NET-Price | Y19: Price incl. VAT | Z19: Wartość | AA19: Uwagi
B20: N:29.1|29 | C20: 313003 | E20: WCR e-GS Rebel FIS SW RP WCR 14 | F20: 2276.42 | G20: =F20 * 1.23 -> 2799.9966 | V20: =(SUM(H20:U20)) -> 0 | W20: 4000 | X20: =Y20 / 1.23 -> 2276.42 | Y20: =G20 * (1-WS_DISCOUNT) -> 2799.9966 | Z20: =((SUM(H20:U20)) * Y20) -> 0 | AF20: #ART | AG20: #MATKZ | AS20: #DIM-183 | AU20: #DIM-188 | AX20: #DIM-193 | AY20: #POSMENGE | BA20: #PREIS-2276.42 | BC20: #POSWERT | BD20: #BEMERKUNG
B21: N:29.1|29 | C21: 313063 | E21: WCR e-GS Rebel Pro SW RP WCR 14 wh/bk | F21: 2276.42 | G21: 2799.9966 | V21: 0 | W21: 4000 | X21: 2276.42 | Y21: 2799.9966 | Z21: 0 | AF21: #ART | AG21: #MATKZ | AQ21: #DIM-177 | AS21: #DIM-183 | AV21: #DIM-189 | AW21: #DIM-191 | AY21: #POSMENGE | BA21: #PREIS-2276.42 | BC21: #POSWERT | BD21: #BEMERKUNG
B22: N:29.1|29 | C22: 313043 | E22: WCR e-GS Rebel SW RP WCR 14 wh/bk | F22: 2276.42 | G22: 2799.9966 | V22: 0 | W22: 4000 | X22: 2276.42 | Y22: 2799.9966 | Z22: 0 | AF22: #ART | AG22: #MATKZ | AP22: #DIM-176 | AR22: #DIM-181 | AT22: #DIM-186 | AU22: #DIM-188 | AY22: #POSMENGE | BA22: #PREIS-2276.42 | BC22: #POSWERT | BD22: #BEMERKUNG
B23: N:29.1|29 | C23: 313053 | E23: WCR e-GS Rebel SW RP WCR T wh/bk | F23: 2048.78 | G23: 2519.9994 | V23: 0 | W23: 3600 | X23: 2048.78 | Y23: 2519.9994 | Z23: 0 | AF23: #ART | AG23: #MATKZ | AP23: #DIM-176 | AR23: #DIM-181 | AY23: #POSMENGE | BA23: #PREIS-2048.78 | BC23: #POSWERT | BD23: #BEMERKUNG
B24: N:29.1|29 | C24: 313024 | E24: WCR e-SL Rebel SW RP WCR 14 wh/bk | F24: 2276.42 | G24: 2799.9966 | V24: 0 | W24: 4000 | X24: 2276.42 | Y24: 2799.9966 | Z24: 0 | AF24: #ART | AG24: #MATKZ | AK24: #DIM-151 | AY24: #POSMENGE | BA24: #PREIS-2276.42 | BC24: #POSWERT | BD24: #BEMERKUNG
B25: N:29.1|29 | C25: 313084 | E25: WCR e-SL Rebel FIS SW RP WCR 14 wh/bk | F25: 2276.42 | G25: 2799.9966 | V25: 0 | W25: 4000 | X25: 2276.42 | Y25: 2799.9966 | Z25: 0 | AF25: #ART | AG25: #MATKZ | AL25: #DIM-156 | AM25: #DIM-158 | AN25: #DIM-165 | AO25: #DIM-168 | AY25: #POSMENGE | BA25: #PREIS-2276.42 | BC25: #POSWERT | BD25: #BEMERKUNG
A26: GH | B26: N:30| | C26: Junior Racing
A27: H | B27: N:30.1|30 | C27: Kod Art. | E27: Model | F27: Cena Racing Netto | G27: Cena Racing Brutto | H27: 116 | I27: 118 | J27: 124 | K27: 125 | L27: 132 | M27: 139 | N27: 140 | O27: 146 | P27: 148 | Q27: 153 | R27: 156 | S27: 160 | T27: 164 | U27: 172 | V27: Ilość | W27: Rekomend. Cena Detaliczna | X27: NET-Price | Y27: Price incl. VAT | Z27: Wartość | AA27: Uwagi
B28: N:30.1|30 | C28: 314234 | E28: WCR e.SL Rebel Team SW RP WCR T wh/bk | F28: 1052.85 | G28: =F28 * 1.23 -> 1295.0055 | V28: =(SUM(H28:U28)) -> 0 | W28: 1850 | X28: =Y28 / 1.23 -> 1052.85 | Y28: =G28 * (1-WS_DISCOUNT) -> 1295.0055 | Z28: =((SUM(H28:U28)) * Y28) -> 0 | AF28: #ART | AG28: #MATKZ | AL28: #DIM-118 | AN28: #DIM-125 | AO28: #DIM-132 | AP28: #DIM-139 | AR28: #DIM-146 | AT28: #DIM-153 | AV28: #DIM-160 | AY28: #POSMENGE | BA28: #PREIS-1052.85 | BC28: #POSWERT | BD28: #BEMERKUNG
B29: N:30.1|30 | C29: 314004 | E29: WCR e.GS Rebel Team SW RP WCR T wh/bk | F29: 1052.85 | G29: =F29 * 1.23 -> 1295.0055 | V29: =(SUM(H29:U29)) -> 0 | W29: 1850 | X29: =Y29 / 1.23 -> 1052.85 | Y29: =G29 * (1-WS_DISCOUNT) -> 1295.0055 | Z29: =((SUM(H29:U29)) * Y29) -> 0 | AF29: #ART | AG29: #MATKZ | AK29: #DIM-116 | AM29: #DIM-124 | AO29: #DIM-132 | AQ29: #DIM-140 | AS29: #DIM-148 | AU29: #DIM-156 | AW29: #DIM-164 | AX29: #DIM-172 | AY29: #POSMENGE | BA29: #PREIS-1052.85 | BC29: #POSWERT | BD29: #BEMERKUNG
A30: GH | B30: N:31| | C30: WIAZANIA HEAD
A31: GH | B31: N:32| | C31: Head Comp./Racing
A32: H | B32: N:32.1|32 | C32: Kod Art. | E32: Model | F32: Cena Racing Netto | G32: Cena Racing Brutto | H32: QTY | V32: Ilość | W32: Rekomend. Cena Detaliczna | X32: NET-Price | Y32: Price incl. VAT | Z32: Wartość | AA32: Uwagi
B33: N:32.1|32 | C33: 100900 | E33: FREEFLEX ST 20X RD BR.85 [A]m.bk/sp.bl | F33: 1138.21 | G33: =F33 * 1.23 -> 1399.9983 | V33: =(SUM(H33:U33)) -> 0 | W33: 2000 | X33: =Y33 / 1.23 -> 1138.21 | Y33: =G33 * (1-WS_DISCOUNT) -> 1399.9983 | Z33: =((SUM(H33:U33)) * Y33) -> 0 | AF33: #ART | AG33: #MATKZ | AK33: #DIM-QTY | AY33: #POSMENGE | BA33: #PREIS-1138.21 | BC33: #POSWERT | BD33: #BEMERKUNG
B34: N:32.1|32 | C34: 100901 | E34: FREEFLEX ST 20X RS BR.85 [A]m.bk/sp.bl | F34: 1138.21 | G34: 1399.9983 | V34: 0 | W34: 2000 | X34: 1138.21 | Y34: 1399.9983 | Z34: 0 | AF34: #ART | AG34: #MATKZ | AK34: #DIM-QTY | AY34: #POSMENGE | BA34: #PREIS-1138.21 | BC34: #POSWERT | BD34: #BEMERKUNG
B35: N:32.1|32 | C35: 100902 | E35: FREEFLEX ST 16X RD BR.85 [A]m.bk/sp.bl | F35: 1138.21 | G35: 1399.9983 | V35: 0 | W35: 2000 | X35: 1138.21 | Y35: 1399.9983 | Z35: 0 | AF35: #ART | AG35: #MATKZ | AK35: #DIM-QTY | AY35: #POSMENGE | BA35: #PREIS-1138.21 | BC35: #POSWERT | BD35: #BEMERKUNG
B36: N:32.1|32 | C36: 100903 | E36: FREEFLEX ST 14X BR.85 [A]m.bk/sp.bl | F36: 882.11 | G36: 1084.9953 | V36: 0 | W36: 1550 | X36: 882.11 | Y36: 1084.9953 | Z36: 0 | AF36: #ART | AG36: #MATKZ | AK36: #DIM-QTY | AY36: #POSMENGE | BA36: #PREIS-882.11 | BC36: #POSWERT | BD36: #BEMERKUNG
B37: N:32.1|32 | C37: 100904 | E37: FREEFLEX ST 16 BR.85 [A]m.bk/sp.bl | F37: 825.2 | G37: 1014.996 | V37: 0 | W37: 1450 | X37: 825.2 | Y37: 1014.996 | Z37: 0 | AF37: #ART | AG37: #MATKZ | AK37: #DIM-QTY | AY37: #POSMENGE | BA37: #PREIS-825.2 | BC37: #POSWERT | BD37: #BEMERKUNG
B38: N:32.1|32 | C38: 100905 | E38: FREEFLEX ST 14 BR.85 [A]m.bk/sp.bl | F38: 711.38 | G38: 874.9974 | V38: 0 | W38: 1250 | X38: 711.38 | Y38: 874.9974 | Z38: 0 | AF38: #ART | AG38: #MATKZ | AK38: #DIM-QTY | AY38: #POSMENGE | BA38: #PREIS-711.38 | BC38: #POSWERT | BD38: #BEMERKUNG
B39: N:32.1|32 | C39: 100906 | E39: FREEFLEX 11 RACE BR.85 [A]m.bk/sp.bl | F39: 455.28 | G39: 559.9944 | V39: 0 | W39: 800 | X39: 455.28 | Y39: 559.9944 | Z39: 0 | AF39: #ART | AG39: #MATKZ | AK39: #DIM-QTY | AY39: #POSMENGE | BA39: #PREIS-455.28 | BC39: #POSWERT | BD39: #BEMERKUNG
B40: N:32.1|32 | C40: 100907 | E40: FREEFLEX 14 GW BR.85 [D]m.bk/sp.bl | F40: 597.56 | G40: 734.9988 | V40: 0 | W40: 1050 | X40: 597.56 | Y40: 734.9988 | Z40: 0 | AF40: #ART | AG40: #MATKZ | AK40: #DIM-QTY | AY40: #POSMENGE | BA40: #PREIS-597.56 | BC40: #POSWERT | BD40: #BEMERKUNG
B41: N:32.1|32 | C41: 100908 | E41: FREEFLEX 11 GW BR.85 [D]m.bk/sp.bl | F41: 426.83 | G41: 525.0009 | V41: 0 | W41: 750 | X41: 426.83 | Y41: 525.0009 | Z41: 0 | AF41: #ART | AG41: #MATKZ | AK41: #DIM-QTY | AY41: #POSMENGE | BA41: #PREIS-426.83 | BC41: #POSWERT | BD41: #BEMERKUNG
B42: N:32.1|32 | C42: 100921 | E42: EVO 9 GW CA BR.85[D]s.bk/sp.bl | F42: 313.01 | G42: 385.0023 | V42: 0 | W42: 550 | X42: 313.01 | Y42: 385.0023 | Z42: 0 | AF42: #ART | AG42: #MATKZ | AK42: #DIM-QTY | AY42: #POSMENGE | BA42: #PREIS-313.01 | BC42: #POSWERT | BD42: #BEMERKUNG
B43: N:32.1|32 | C43: 100909 | E43: FREEFLEX DEMO 14 GW BR.85 [D]m.bk/sp.bl | F43: 711.38 | G43: 874.9974 | V43: 0 | W43: 1250 | X43: 711.38 | Y43: 874.9974 | Z43: 0 | AF43: #ART | AG43: #MATKZ | AK43: #DIM-QTY | AY43: #POSMENGE | BA43: #PREIS-711.38 | BC43: #POSWERT | BD43: #BEMERKUNG
A44: GH | B44: N:61| | C44: Części
A45: H | B45: N:61.1|61 | C45: Kod Art. | E45: Model | F45: Cena Racing Netto | G45: Cena Racing Brutto | H45: QTY | V45: Ilość | W45: Rekomend. Cena Detaliczna | X45: NET-Price | Y45: Price incl. VAT | Z45: Wartość | AA45: Uwagi
A46: T | B46: N:61.1|61 | E46: Skistopery
B47: N:61.1|61 | C47: 163032 | E47: Power Brake2 Race PRO 16-85 [A] (1 pair) | F47: 56.91 | G47: =F47 * 1.23 -> 69.9993 | V47: =(SUM(H47:U47)) -> 0 | W47: 100 | X47: =Y47 / 1.23 -> 56.91 | Y47: =G47 * (1-WS_DISCOUNT) -> 69.9993 | Z47: =((SUM(H47:U47)) * Y47) -> 0 | AF47: #ART | AG47: #MATKZ | AK47: #DIM-QTY | AY47: #POSMENGE | BA47: #PREIS-56.91 | BC47: #POSWERT | BD47: #BEMERKUNG
B48: N:61.1|61 | C48: 163033 | E48: Power Brake2 Race PRO 17-85 [A] (1 pair) | F48: 56.91 | G48: =F48 * 1.23 -> 69.9993 | V48: =(SUM(H48:U48)) -> 0 | W48: 100 | X48: =Y48 / 1.23 -> 56.91 | Y48: =G48 * (1-WS_DISCOUNT) -> 69.9993 | Z48: =((SUM(H48:U48)) * Y48) -> 0 | AF48: #ART | AG48: #MATKZ | AK48: #DIM-QTY | AY48: #POSMENGE | BA48: #PREIS-56.91 | BC48: #POSWERT | BD48: #BEMERKUNG
B49: N:61.1|61 | C49: 163034 | E49: Power Brake2 Race PRO wide 18-85[A](1pr) | F49: 56.91 | G49: =F49 * 1.23 -> 69.9993 | V49: =(SUM(H49:U49)) -> 0 | W49: 100 | X49: =Y49 / 1.23 -> 56.91 | Y49: =G49 * (1-WS_DISCOUNT) -> 69.9993 | Z49: =((SUM(H49:U49)) * Y49) -> 0 | AF49: #ART | AG49: #MATKZ | AK49: #DIM-QTY | AY49: #POSMENGE | BA49: #PREIS-56.91 | BC49: #POSWERT | BD49: #BEMERKUNG
B50: N:61.1|61 | C50: 163039 | E50: Power Brake2 Race PRO 18-85 [A] (1 pair) | F50: 56.91 | G50: =F50 * 1.23 -> 69.9993 | V50: =(SUM(H50:U50)) -> 0 | W50: 100 | X50: =Y50 / 1.23 -> 56.91 | Y50: =G50 * (1-WS_DISCOUNT) -> 69.9993 | Z50: =((SUM(H50:U50)) * Y50) -> 0 | AF50: #ART | AG50: #MATKZ | AK50: #DIM-QTY | AY50: #POSMENGE | BA50: #PREIS-56.91 | BC50: #POSWERT | BD50: #BEMERKUNG
B51: N:61.1|61 | C51: 163044 | E51: Power Brake2 LD 85 [D] (1 pair) | F51: 56.91 | G51: =F51 * 1.23 -> 69.9993 | V51: =(SUM(H51:U51)) -> 0 | W51: 100 | X51: =Y51 / 1.23 -> 56.91 | Y51: =G51 * (1-WS_DISCOUNT) -> 69.9993 | Z51: =((SUM(H51:U51)) * Y51) -> 0 | AF51: #ART | AG51: #MATKZ | AK51: #DIM-QTY | AY51: #POSMENGE | BA51: #PREIS-56.91 | BC51: #POSWERT | BD51: #BEMERKUNG
A52: T | B52: N:61.1|61 | E52: Zestawy lifterów
B53: N:61.1|61 | C53: 162905 | E53: lifter set 3mm (1 Set) | F53: 56.91 | G53: =F53 * 1.23 -> 69.9993 | V53: =(SUM(H53:U53)) -> 0 | W53: 100 | X53: =Y53 / 1.23 -> 56.91 | Y53: =G53 * (1-WS_DISCOUNT) -> 69.9993 | Z53: =((SUM(H53:U53)) * Y53) -> 0 | AF53: #ART | AG53: #MATKZ | AK53: #DIM-QTY | AY53: #POSMENGE | BA53: #PREIS-56.91 | BC53: #POSWERT | BD53: #BEMERKUNG
B54: N:61.1|61 | C54: 162906 | E54: lifter set 5mm (1 Set) | F54: 56.91 | G54: 69.9993 | V54: 0 | W54: 100 | X54: 56.91 | Y54: 69.9993 | Z54: 0 | AF54: #ART | AG54: #MATKZ | AK54: #DIM-QTY | AY54: #POSMENGE | BA54: #PREIS-56.91 | BC54: #POSWERT | BD54: #BEMERKUNG
B55: N:61.1|61 | C55: 162933 | E55: lifter set 3/5mm (heel/toe) (1 Set) | F55: 56.91 | G55: 69.9993 | V55: 0 | W55: 100 | X55: 56.91 | Y55: 69.9993 | Z55: 0 | AF55: #ART | AG55: #MATKZ | AK55: #DIM-QTY | AY55: #POSMENGE | BA55: #PREIS-56.91 | BC55: #POSWERT | BD55: #BEMERKUNG
B56: N:61.1|61 | C56: 162934 | E56: lifter set 4/6mm (heel/toe) (1 Set) | F56: 56.91 | G56: 69.9993 | V56: 0 | W56: 100 | X56: 56.91 | Y56: 69.9993 | Z56: 0 | AF56: #ART | AG56: #MATKZ | AK56: #DIM-QTY | AY56: #POSMENGE | BA56: #PREIS-56.91 | BC56: #POSWERT | BD56: #BEMERKUNG
B57: N:61.1|61 | C57: 163075 | E57: lifter set 2/3mm (heel/toe) (1 Set) | F57: 56.91 | G57: 69.9993 | V57: 0 | W57: 100 | X57: 56.91 | Y57: 69.9993 | Z57: 0 | AF57: #ART | AG57: #MATKZ | AK57: #DIM-QTY | AY57: #POSMENGE | BA57: #PREIS-56.91 | BC57: #POSWERT | BD57: #BEMERKUNG
B58: N:61.1|61 | C58: 163076 | E58: lifter set 5/8mm (heel/toe) (1 Set) | F58: 56.91 | G58: 69.9993 | V58: 0 | W58: 100 | X58: 56.91 | Y58: 69.9993 | Z58: 0 | AF58: #ART | AG58: #MATKZ | AK58: #DIM-QTY | AY58: #POSMENGE | BA58: #PREIS-56.91 | BC58: #POSWERT | BD58: #BEMERKUNG
B59: N:61.1|61 | C59: 163135 | E59: lifter set 1/2mm (heel/toe) (1 Set) | F59: 56.91 | G59: 69.9993 | V59: 0 | W59: 100 | X59: 56.91 | Y59: 69.9993 | Z59: 0 | AF59: #ART | AG59: #MATKZ | AK59: #DIM-QTY | AY59: #POSMENGE | BA59: #PREIS-56.91 | BC59: #POSWERT | BD59: #BEMERKUNG
B60: N:61.1|61 | C60: 163136 | E60: lifter set 4/5mm (heel/toe) (1 Set) | F60: 56.91 | G60: 69.9993 | V60: 0 | W60: 100 | X60: 56.91 | Y60: 69.9993 | Z60: 0 | AF60: #ART | AG60: #MATKZ | AK60: #DIM-QTY | AY60: #POSMENGE | BA60: #PREIS-56.91 | BC60: #POSWERT | BD60: #BEMERKUNG
B61: N:61.1|61 | C61: 163187 | E61: lifter set 5/6mm (heel/toe) (1 set) | F61: 56.91 | G61: 69.9993 | V61: 0 | W61: 100 | X61: 56.91 | Y61: 69.9993 | Z61: 0 | AF61: #ART | AG61: #MATKZ | AK61: #DIM-QTY | AY61: #POSMENGE | BA61: #PREIS-56.91 | BC61: #POSWERT | BD61: #BEMERKUNG
B62: N:61.1|61 | C62: 162803 | E62: Heel AFD Insert Freeflex PRO (10 prs.) | F62: 28.46 | G62: 35.0058 | V62: 0 | W62: 50 | X62: 28.46 | Y62: 35.0058 | Z62: 0 | AF62: #ART | AG62: #MATKZ | AK62: #DIM-QTY | AY62: #POSMENGE | BA62: #PREIS-28.46 | BC62: #POSWERT | BD62: #BEMERKUNG
A63: GH | B63: N:53| | C63: Downhill
A64: H | B64: N:53.1|53 | C64: Kod Art. | E64: Model | F64: Cena Racing Netto | G64: Cena Racing Brutto | H64: 210 | I64: 215 | J64: 218 | V64: Ilość | W64: Rekomend. Cena Detaliczna | X64: NET-Price | Y64: Price incl. VAT | Z64: Wartość | AA64: Uwagi
B65: N:53.1|53 | C65: 318003 | E65: DH 218 Race Plate | F65: 2390.24 | G65: =F65 * 1.23 -> 2939.9952 | V65: =(SUM(H65:U65)) -> 0 | W65: 4200 | X65: =Y65 / 1.23 -> 2390.24 | Y65: =G65 * (1-WS_DISCOUNT) -> 2939.9952 | Z65: =((SUM(H65:U65)) * Y65) -> 0 | AF65: #ART | AG65: #MATKZ | AM65: #DIM-218 | AY65: #POSMENGE | BA65: #PREIS-2390.24 | BC65: #POSWERT | BD65: #BEMERKUNG
B66: N:53.1|53 | C66: 318013 | E66: DH 215 Race Plate | F66: 2390.24 | G66: =F66 * 1.23 -> 2939.9952 | V66: =(SUM(H66:U66)) -> 0 | W66: 4200 | X66: =Y66 / 1.23 -> 2390.24 | Y66: =G66 * (1-WS_DISCOUNT) -> 2939.9952 | Z66: =((SUM(H66:U66)) * Y66) -> 0 | AF66: #ART | AG66: #MATKZ | AL66: #DIM-215 | AY66: #POSMENGE | BA66: #PREIS-2390.24 | BC66: #POSWERT | BD66: #BEMERKUNG
B67: N:53.1|53 | C67: 318023 | E67: DH 210 Race Plate | F67: 2390.24 | G67: =F67 * 1.23 -> 2939.9952 | V67: =(SUM(H67:U67)) -> 0 | W67: 4200 | X67: =Y67 / 1.23 -> 2390.24 | Y67: =G67 * (1-WS_DISCOUNT) -> 2939.9952 | Z67: =((SUM(H67:U67)) * Y67) -> 0 | AF67: #ART | AG67: #MATKZ | AK67: #DIM-210 | AY67: #POSMENGE | BA67: #PREIS-2390.24 | BC67: #POSWERT | BD67: #BEMERKUNG
A68: GH | B68: N:28| | C68: Super-G
A69: H | B69: N:28.1|28 | C69: Kod Art. | E69: Model | F69: Cena Racing Netto | G69: Cena Racing Brutto | H69: 175 | I69: 185 | J69: 195 | K69: 200 | L69: 202 | M69: 207 | N69: 210 | O69: 213 | V69: Ilość | W69: Rekomend. Cena Detaliczna | X69: NET-Price | Y69: Price incl. VAT | Z69: Wartość | AA69: Uwagi
B70: N:28.1|28 | C70: 318033 | E70: SGM 213 Race Plate | F70: 2390.24 | G70: =F70 * 1.23 -> 2939.9952 | V70: =(SUM(H70:U70)) -> 0 | W70: 4200 | X70: =Y70 / 1.23 -> 2390.24 | Y70: =G70 * (1-WS_DISCOUNT) -> 2939.9952 | Z70: =((SUM(H70:U70)) * Y70) -> 0 | AF70: #ART | AG70: #MATKZ | AR70: #DIM-213 | AY70: #POSMENGE | BA70: #PREIS-2390.24 | BC70: #POSWERT | BD70: #BEMERKUNG
B71: N:28.1|28 | C71: 318113 | E71: SGL 210 Race Plate | F71: 2390.24 | G71: 2939.9952 | V71: 0 | W71: 4200 | X71: 2390.24 | Y71: 2939.9952 | Z71: 0 | AF71: #ART | AG71: #MATKZ | AQ71: #DIM-210 | AY71: #POSMENGE | BA71: #PREIS-2390.24 | BC71: #POSWERT | BD71: #BEMERKUNG
B72: N:28.1|28 | C72: 318043 | E72: SGL 207 Race Plate W | F72: 2390.24 | G72: 2939.9952 | V72: 0 | W72: 4200 | X72: 2390.24 | Y72: 2939.9952 | Z72: 0 | AF72: #ART | AG72: #MATKZ | AP72: #DIM-207 | AY72: #POSMENGE | BA72: #PREIS-2390.24 | BC72: #POSWERT | BD72: #BEMERKUNG
B73: N:28.1|28 | C73: 318053 | E73: SGM 207 Race Plate M | F73: 2390.24 | G73: 2939.9952 | V73: 0 | W73: 4200 | X73: 2390.24 | Y73: 2939.9952 | Z73: 0 | AF73: #ART | AG73: #MATKZ | AP73: #DIM-207 | AY73: #POSMENGE | BA73: #PREIS-2390.24 | BC73: #POSWERT | BD73: #BEMERKUNG
B74: N:28.1|28 | C74: 318063 | E74: SGL 202 Race Plate | F74: 2390.24 | G74: 2939.9952 | V74: 0 | W74: 4200 | X74: 2390.24 | Y74: 2939.9952 | Z74: 0 | AF74: #ART | AG74: #MATKZ | AO74: #DIM-202 | AY74: #POSMENGE | BA74: #PREIS-2390.24 | BC74: #POSWERT | BD74: #BEMERKUNG
B75: N:28.1|28 | C75: 318073 | E75: SG 200 RP WCR 14 | F75: 2390.24 | G75: 2939.9952 | V75: 0 | W75: 4200 | X75: 2390.24 | Y75: 2939.9952 | Z75: 0 | AF75: #ART | AG75: #MATKZ | AN75: #DIM-200 | AY75: #POSMENGE | BA75: #PREIS-2390.24 | BC75: #POSWERT | BD75: #BEMERKUNG
B76: N:28.1|28 | C76: 318083 | E76: SG 195 RP WCR 14 | F76: 2390.24 | G76: 2939.9952 | V76: 0 | W76: 4200 | X76: 2390.24 | Y76: 2939.9952 | Z76: 0 | AF76: #ART | AG76: #MATKZ | AM76: #DIM-195 | AY76: #POSMENGE | BA76: #PREIS-2390.24 | BC76: #POSWERT | BD76: #BEMERKUNG
B77: N:28.1|28 | C77: 318093 | E77: SG 185 RP WCR 14 | F77: 2390.24 | G77: 2939.9952 | V77: 0 | W77: 4200 | X77: 2390.24 | Y77: 2939.9952 | Z77: 0 | AF77: #ART | AG77: #MATKZ | AL77: #DIM-185 | AY77: #POSMENGE | BA77: #PREIS-2390.24 | BC77: #POSWERT | BD77: #BEMERKUNG
B78: N:28.1|28 | C78: 318103 | E78: SG 175 RP WCR 14 | F78: 2390.24 | G78: 2939.9952 | V78: 0 | W78: 4200 | X78: 2390.24 | Y78: 2939.9952 | Z78: 0 | AF78: #ART | AG78: #MATKZ | AK78: #DIM-175 | AY78: #POSMENGE | BA78: #PREIS-2390.24 | BC78: #POSWERT | BD78: #BEMERKUNG

Sheet BUTY
A1: #PRD | B1: #INPUT | C1: http://www.head.com/ | E1: =BUTY!D1 -> 0 | H1: #DD1 | I1: #DD1 | J1: #DD1 | K1: #DD1 | L1: #DD1 | M1: #DD1 | N1: #DD1 | O1: #DD1 | P1: #DD1 | Q1: #DD1 | R1: #DD1 | S1: #DD1 | T1: #DD1 | U1: #DD1 | V1: #DD1 | W1: #DD1 | X1: #DD1 | Y1: #DD1 | Z1: #DD1 | AA1: #DD1 | AB1: #DD1 | AC1: #DD1 | AD1: #DD1 | AE1: #DD1 | AF1: #DD1 | AG1: #DD1 | AH1: #DD1 | AI1: #DD1 | AJ1: #DD1 | AK1: #DD1 | AL1: #DD1 | AU1: #FIRST-ADDINFO-COL
A2: =SUM(A10:A10) -> 0 | B2: =SUM(B10:B10) -> 0
A3: B3 has to be empty!!! | C3: Nr klienta | D3: =IF(F_CUST_NO="","",F_CUST_NO) -> NEW | G3: Nr zamówienia | I3: =IF(F_ORDER_NO="","",F_ORDER_NO) -> PRE RACE 24/25 | P3: Data zamówienia | T3: =IF(F_ORDER_DATE<> "",F_ORDER_DATE,"") -> 
A4: Empty Lines: | B4: TRUE | C4: Nazwa firmy | D4: =IF(F_CUST_NAME="","",F_CUST_NAME) ->  | G4: Sales Rep. | I4: =IF(F_SALES_REP="","",F_SALES_REP) -> 2694000|Sales Rep / Poland | P4: Data dostawy | T4: =IF(F_DELDATE1<> "",F_DELDATE1,"") -> 
A5: Delivery Date Total: | B5: TRUE | C5: Adres | D5: =IF(F_CUST_ADDR="","",F_CUST_ADDR) ->  | T5: =IF(F_DELDATE2<> "",F_DELDATE2,"") -> 
A6: Delivery Date 1: | B6: TRUE | G6: Zniżka | T6: =IF(F_DELDATE3<> "",F_DELDATE3,"") -> 
A7: Delivery Date 2: | B7: TRUE
A8: Delivery Date 3: | B8: TRUE
C9: HEAD Sport GmbH - Wuhrkopfweg 1
A10: =SUM($AM$19:$AM$22)+SUM($AM$25:$AM$29)+SUM($AM$32:$AM$48)+SUM($AM$50:$AM$53) -> 0 | B10: =SUM($AQ$19:$AQ$22)+SUM($AQ$25:$AQ$29)+SUM($AQ$32:$AQ$48)+SUM($AQ$50:$AQ$53) -> 0 | C10: Wuhrkopfweg 1 - A 6921 Kennelbach Austria | F10: BUTY -kod prod. to link do zdjęcia!
A11: Reserved DD2-QTTY | B11: DD2-Amount | C11: FN 64824 f
A12: Reserved DD3-QTTY | B12: DD3-Amount
A13: Reserved DD4-QTTY | B13: DD4-Amount
A14: Reserved DD5-QTTY | B14: DD5-Amount
A15: Reserved DD6-QTTY | B15: DD6-Amount
A17: GH | B17: N:33| | C17: Head Top
A18: H | B18: N:33.1|33 | C18: Kod Art. | E18: Model | F18: Cena Racing Netto | G18: Cena Racing Brutto | H18: 225 | I18: 235 | J18: 245 | K18: 255 | L18: 265 | M18: 275 | N18: 285 | AM18: Ilość | AN18: Rekomend. Cena Detaliczna | AO18: NET-Price | AP18: Price incl. VAT | AQ18: Wartość | AR18: Uwagi
B19: N:33.1|33 | C19: 603051 | E19: RAPTOR RD M5 | F19: 2105.69 | G19: =F19 * 1.23 -> 2589.9987 | AM19: =(SUM(H19:AL19)) -> 0 | AN19: 3700 | AO19: =AP19 / 1.23 -> 2105.69 | AP19: =G19 * (1-WS_DISCOUNT) -> 2589.9987 | AQ19: =((SUM(H19:AL19)) * AP19) -> 0 | AW19: #ART | AX19: #MATKZ | BB19: #DIM-225 | BC19: #DIM-235 | BD19: #DIM-245 | BE19: #DIM-255 | BF19: #DIM-265 | BG19: #DIM-275 | BH19: #DIM-285 | CG19: #POSMENGE | CI19: #PREIS-2105.69 | CK19: #POSWERT | CL19: #BEMERKUNG
B20: N:33.1|33 | C20: 603013 | E20: RAPTOR WCR 2 WHITE | F20: 2105.69 | G20: =F20 * 1.23 -> 2589.9987 | AM20: =(SUM(H20:AL20)) -> 0 | AN20: 3700 | AO20: =AP20 / 1.23 -> 2105.69 | AP20: =G20 * (1-WS_DISCOUNT) -> 2589.9987 | AQ20: =((SUM(H20:AL20)) * AP20) -> 0 | AW20: #ART | AX20: #MATKZ | BB20: #DIM-225 | BC20: #DIM-235 | BD20: #DIM-245 | BE20: #DIM-255 | BF20: #DIM-265 | BG20: #DIM-275 | BH20: #DIM-285 | CG20: #POSMENGE | CI20: #PREIS-2105.69 | CK20: #POSWERT | CL20: #BEMERKUNG
B21: N:33.1|33 | C21: 603016 | E21: RAPTOR WCR 3 WHITE | F21: 2105.69 | G21: =F21 * 1.23 -> 2589.9987 | AM21: =(SUM(H21:AL21)) -> 0 | AN21: 3700 | AO21: =AP21 / 1.23 -> 2105.69 | AP21: =G21 * (1-WS_DISCOUNT) -> 2589.9987 | AQ21: =((SUM(H21:AL21)) * AP21) -> 0 | AW21: #ART | AX21: #MATKZ | BB21: #DIM-225 | BC21: #DIM-235 | BD21: #DIM-245 | BE21: #DIM-255 | BF21: #DIM-265 | BG21: #DIM-275 | BH21: #DIM-285 | CG21: #POSMENGE | CI21: #PREIS-2105.69 | CK21: #POSWERT | CL21: #BEMERKUNG
B22: N:33.1|33 | C22: 603019 | E22: RAPTOR WCR 4 WHITE | F22: 1991.87 | G22: =F22 * 1.23 -> 2450.0001 | AM22: =(SUM(H22:AL22)) -> 0 | AN22: 3500 | AO22: =AP22 / 1.23 -> 1991.87 | AP22: =G22 * (1-WS_DISCOUNT) -> 2450.0001 | AQ22: =((SUM(H22:AL22)) * AP22) -> 0 | AW22: #ART | AX22: #MATKZ | BB22: #DIM-225 | BC22: #DIM-235 | BD22: #DIM-245 | BE22: #DIM-255 | BF22: #DIM-265 | BG22: #DIM-275 | BH22: #DIM-285 | CG22: #POSMENGE | CI22: #PREIS-1991.87 | CK22: #POSWERT | CL22: #BEMERKUNG
A23: GH | B23: N:34| | C23: Junior
A24: H | B24: N:34.1|34 | C24: Kod Art. | E24: Model | F24: Cena Racing Netto | G24: Cena Racing Brutto | H24: 205 | I24: 215 | J24: 225 | K24: 235 | L24: 245 | M24: 255 | N24: 265 | O24: 275 | P24: 285 | AM24: Ilość | AN24: Rekomend. Cena Detaliczna | AO24: NET-Price | AP24: Price incl. VAT | AQ24: Wartość | AR24: Uwagi
B25: N:34.1|34 | C25: 603020 | E25: RAPTOR WCR 5 SC WHITE | F25: 1536.59 | G25: =F25 * 1.23 -> 1890.0057 | AM25: =(SUM(H25:AL25)) -> 0 | AN25: 2700 | AO25: =AP25 / 1.23 -> 1536.59 | AP25: =G25 * (1-WS_DISCOUNT) -> 1890.0057 | AQ25: =((SUM(H25:AL25)) * AP25) -> 0 | AW25: #ART | AX25: #MATKZ | BD25: #DIM-225 | BE25: #DIM-235 | BF25: #DIM-245 | BG25: #DIM-255 | BH25: #DIM-265 | BI25: #DIM-275 | CG25: #POSMENGE | CI25: #PREIS-1536.59 | CK25: #POSWERT | CL25: #BEMERKUNG
B26: N:34.1|34 | C26: 603022 | E26: RAPTOR WCR 6 SC WHITE | F26: 1365.85 | G26: =F26 * 1.23 -> 1679.9955 | AM26: =(SUM(H26:AL26)) -> 0 | AN26: 2400 | AO26: =AP26 / 1.23 -> 1365.85 | AP26: =G26 * (1-WS_DISCOUNT) -> 1679.9955 | AQ26: =((SUM(H26:AL26)) * AP26) -> 0 | AW26: #ART | AX26: #MATKZ | BD26: #DIM-225 | BE26: #DIM-235 | BF26: #DIM-245 | BG26: #DIM-255 | BH26: #DIM-265 | BI26: #DIM-275 | CG26: #POSMENGE | CI26: #PREIS-1365.85 | CK26: #POSWERT | CL26: #BEMERKUNG
B27: N:34.1|34 | C27: 603510 | E27: RAPTOR WCR 90 WHITE | F27: 995.93 | G27: =F27 * 1.23 -> 1224.9939 | AM27: =(SUM(H27:AL27)) -> 0 | AN27: 1750 | AO27: =AP27 / 1.23 -> 995.93 | AP27: =G27 * (1-WS_DISCOUNT) -> 1224.9939 | AQ27: =((SUM(H27:AL27)) * AP27) -> 0 | AW27: #ART | AX27: #MATKZ | BD27: #DIM-225 | BE27: #DIM-235 | BF27: #DIM-245 | BG27: #DIM-255 | BH27: #DIM-265 | BI27: #DIM-275 | BJ27: #DIM-285 | CG27: #POSMENGE | CI27: #PREIS-995.93 | CK27: #POSWERT | CL27: #BEMERKUNG
B28: N:34.1|34 | C28: 603515 | E28: RAPTOR WCR 70 WHITE | F28: 882.11 | G28: =F28 * 1.23 -> 1084.9953 | AM28: =(SUM(H28:AL28)) -> 0 | AN28: 1550 | AO28: =AP28 / 1.23 -> 882.11 | AP28: =G28 * (1-WS_DISCOUNT) -> 1084.9953 | AQ28: =((SUM(H28:AL28)) * AP28) -> 0 | AW28: #ART | AX28: #MATKZ | BD28: #DIM-225 | BE28: #DIM-235 | BF28: #DIM-245 | BG28: #DIM-255 | BH28: #DIM-265 | BI28: #DIM-275 | BJ28: #DIM-285 | CG28: #POSMENGE | CI28: #PREIS-882.11 | CK28: #POSWERT | CL28: #BEMERKUNG
B29: N:34.1|34 | C29: 603520 | E29: RAPTOR 70 WHITE | F29: 626.02 | G29: =F29 * 1.23 -> 770.0046 | AM29: =(SUM(H29:AL29)) -> 0 | AN29: 1100 | AO29: =AP29 / 1.23 -> 626.02 | AP29: =G29 * (1-WS_DISCOUNT) -> 770.0046 | AQ29: =((SUM(H29:AL29)) * AP29) -> 0 | AW29: #ART | AX29: #MATKZ | BB29: #DIM-205 | BC29: #DIM-215 | BD29: #DIM-225 | BE29: #DIM-235 | BF29: #DIM-245 | BG29: #DIM-255 | BH29: #DIM-265 | BI29: #DIM-275 | CG29: #POSMENGE | CI29: #PREIS-626.02 | CK29: #POSWERT | CL29: #BEMERKUNG
A30: GH | B30: N:43| | C30: Części
A31: H | B31: N:43.1|43 | C31: Kod Art. | E31: Model | F31: Cena Racing Netto | G31: Cena Racing Brutto | H31: QTY | I31: S2023 | J31: 771860 | K31: 771868 | L31: 725760 | M31: 725768 | N31: 8007650 | O31: 771301 | P31: 771302 | Q31: 771303 | R31: 7937225 | S31: 7937235 | T31: 7937245 | U31: 7937255 | V31: 7937265 | W31: 7937275 | X31: 7937285 | Y31: 0097220 | Z31: 0097240 | AA31: 0097260 | AB31: 0097280 | AC31: 6757220 | AD31: 6757240 | AE31: 6757260 | AF31: 6757280 | AG31: 1156 | AH31: 0097 | AI31: 115601 | AJ31: 115602 | AK31: 220 | AL31: 270 | AM31: Ilość | AN31: Rekomend. Cena Detaliczna | AO31: NET-Price | AP31: Price incl. VAT | AQ31: Wartość | AR31: Uwagi
B32: N:43.1|43 | C32: 60123136 | E32: POWER STRAP RAPTOR WCR 53MM | F32: 108.13 | G32: =F32 * 1.23 -> 132.9999 | AM32: =(SUM(H32:AL32)) -> 0 | AN32: 190 | AO32: =AP32 / 1.23 -> 108.13 | AP32: =G32 * (1-WS_DISCOUNT) -> 132.9999 | AQ32: =((SUM(H32:AL32)) * AP32) -> 0 | AW32: #ART | AX32: #MATKZ | BD32: #DIM-771860 | BE32: #DIM-771868 | CG32: #POSMENGE | CI32: #PREIS-108.13 | CK32: #POSWERT | CL32: #BEMERKUNG
B33: N:43.1|43 | C33: 60121788 | E33: POWER STRAP RAPTOR WCR 39MM | F33: 79.67 | G33: 97.9941 | AM33: 0 | AN33: 140 | AO33: 79.67 | AP33: 97.9941 | AQ33: 0 | AW33: #ART | AX33: #MATKZ | BF33: #DIM-725760 | BG33: #DIM-725768 | CG33: #POSMENGE | CI33: #PREIS-79.67 | CK33: #POSWERT | CL33: #BEMERKUNG
B34: N:43.1|43 | C34: 60123629 | E34: POWER STRAP SIDAS SOFT P3 40MM 2024 | F34: 256.1 | G34: 315.003 | AM34: 0 | AN34: 450 | AO34: 256.1 | AP34: 315.003 | AQ34: 0 | AW34: #ART | AX34: #MATKZ | BH34: #DIM-8007650 | CG34: #POSMENGE | CI34: #PREIS-256.1 | CK34: #POSWERT | CL34: #BEMERKUNG
B35: N:43.1|43 | C35: 60123699 | E35: POWER STRAP SIDAS HARD P4 40MM 2024 | F35: 256.1 | G35: 315.003 | AM35: 0 | AN35: 450 | AO35: 256.1 | AP35: 315.003 | AQ35: 0 | AW35: #ART | AX35: #MATKZ | BH35: #DIM-8007650 | CG35: #POSMENGE | CI35: #PREIS-256.1 | CK35: #POSWERT | CL35: #BEMERKUNG
B36: N:43.1|43 | C36: 60123520 | E36: RACE TONGUE SL | F36: 73.98 | G36: 90.9954 | AM36: 0 | AN36: 130 | AO36: 73.98 | AP36: 90.9954 | AQ36: 0 | AW36: #ART | AX36: #MATKZ | BI36: #DIM-771301 | BJ36: #DIM-771302 | BK36: #DIM-771303 | CG36: #POSMENGE | CI36: #PREIS-73.98 | CK36: #POSWERT | CL36: #BEMERKUNG
B37: N:43.1|43 | C37: 60118598 | E37: INNERBOOT FOAM PRO | F37: 626.02 | G37: 770.0046 | AM37: 0 | AN37: 1100 | AO37: 626.02 | AP37: 770.0046 | AQ37: 0 | AW37: #ART | AX37: #MATKZ | BL37: #DIM-7937225 | BM37: #DIM-7937235 | BN37: #DIM-7937245 | BO37: #DIM-7937255 | BP37: #DIM-7937265 | BQ37: #DIM-7937275 | BR37: #DIM-7937285 | CG37: #POSMENGE | CI37: #PREIS-626.02 | CK37: #POSWERT | CL37: #BEMERKUNG
B38: N:43.1|43 | C38: 60118782 | E38: TONGUE FOAM PRO - 2015 | F38: 256.1 | G38: 315.003 | AM38: 0 | AN38: 450 | AO38: 256.1 | AP38: 315.003 | AQ38: 0 | AW38: #ART | AX38: #MATKZ | BS38: #DIM-0097220 | BT38: #DIM-0097240 | BU38: #DIM-0097260 | BV38: #DIM-0097280 | CG38: #POSMENGE | CI38: #PREIS-256.1 | CK38: #POSWERT | CL38: #BEMERKUNG
B39: N:43.1|43 | C39: 60123540 | E39: TUNING KIT RACING 2023 | F39: 1422.76 | G39: 1749.9948 | AM39: 0 | AN39: 2500 | AO39: 1422.76 | AP39: 1749.9948 | AQ39: 0 | AW39: #ART | AX39: #MATKZ | BC39: #DIM-S2023 | CG39: #POSMENGE | CI39: #PREIS-1422.76 | CK39: #POSWERT | CL39: #BEMERKUNG
B40: N:43.1|43 | C40: 60122049 | E40: RACING CARBON SPOILER KIT REG.2020 | F40: 227.64 | G40: 279.9972 | AM40: 0 | AN40: 400 | AO40: 227.64 | AP40: 279.9972 | AQ40: 0 | AW40: #ART | AX40: #MATKZ | BW40: #DIM-6757220 | BX40: #DIM-6757240 | BY40: #DIM-6757260 | BZ40: #DIM-6757280 | CG40: #POSMENGE | CI40: #PREIS-227.64 | CK40: #POSWERT | CL40: #BEMERKUNG
B41: N:43.1|43 | C41: 60123478 | E41: KIT REAR CUFF SPOILER RACING DEPT. 6MM | F41: 34.15 | G41: 42.0045 | AM41: 0 | AN41: 60 | AO41: 34.15 | AP41: 42.0045 | AQ41: 0 | AW41: #ART | AX41: #MATKZ | CA41: #DIM-1156 | CG41: #POSMENGE | CI41: #PREIS-34.15 | CK41: #POSWERT | CL41: #BEMERKUNG
B42: N:43.1|43 | C42: 60123479 | E42: KIT REAR CUFF SPOILER RACING DEPT. 9MM | F42: 34.15 | G42: 42.0045 | AM42: 0 | AN42: 60 | AO42: 34.15 | AP42: 42.0045 | AQ42: 0 | AW42: #ART | AX42: #MATKZ | CA42: #DIM-1156 | CG42: #POSMENGE | CI42: #PREIS-34.15 | CK42: #POSWERT | CL42: #BEMERKUNG
B43: N:43.1|43 | C43: 60123755 | E43: KIT BRIDGE BUCKLE + TOOTHPLATES RAPTOR | F43: 256.1 | G43: 315.003 | AM43: 0 | AN43: 450 | AO43: 256.1 | AP43: 315.003 | AQ43: 0 | AW43: #ART | AX43: #MATKZ | BC43: #DIM-S2023 | CG43: #POSMENGE | CI43: #PREIS-256.1 | CK43: #POSWERT | CL43: #BEMERKUNG
B44: N:43.1|43 | C44: 60123201 | E44: SPOILER RAPTOR RACE (U1) + VELCRO | F44: 36.99 | G44: 45.4977 | AM44: 0 | AN44: 65 | AO44: 36.99 | AP44: 45.4977 | AQ44: 0 | AW44: #ART | AX44: #MATKZ | CB44: #DIM-0097 | CG44: #POSMENGE | CI44: #PREIS-36.99 | CK44: #POSWERT | CL44: #BEMERKUNG
B45: N:43.1|43 | C45: 60113662 | E45: DISPENSER FOAM RAPTOR | F45: 313.01 | G45: 385.0023 | AM45: 0 | AN45: 550 | AO45: 313.01 | AP45: 385.0023 | AQ45: 0 | AW45: #ART | AX45: #MATKZ | BB45: #DIM-QTY | CG45: #POSMENGE | CI45: #PREIS-313.01 | CK45: #POSWERT | CL45: #BEMERKUNG
B46: N:43.1|43 | C46: 60113212 | E46: FOAM KIT HEAD 154/85-25/12(220-250) | F46: 142.28 | G46: 175.0044 | AM46: 0 | AN46: 250 | AO46: 142.28 | AP46: 175.0044 | AQ46: 0 | AW46: #ART | AX46: #MATKZ | CE46: #DIM-220 | CG46: #POSMENGE | CI46: #PREIS-142.28 | CK46: #POSWERT | CL46: #BEMERKUNG
B47: N:43.1|43 | C47: 60113213 | E47: FOAM KIT HEAD 165/91-29/14(260-270) | F47: 142.28 | G47: 175.0044 | AM47: 0 | AN47: 250 | AO47: 142.28 | AP47: 175.0044 | AQ47: 0 | AW47: #ART | AX47: #MATKZ | CF47: #DIM-270 | CG47: #POSMENGE | CI47: #PREIS-142.28 | CK47: #POSWERT | CL47: #BEMERKUNG
B48: N:43.1|43 | C48: 60116390 | E48: FOAM KIT HEAD 175/95-31/16 (280-300) | F48: 142.28 | G48: 175.0044 | AM48: 0 | AN48: 250 | AO48: 142.28 | AP48: 175.0044 | AQ48: 0 | AW48: #ART | AX48: #MATKZ | BB48: #DIM-QTY | CG48: #POSMENGE | CI48: #PREIS-142.28 | CK48: #POSWERT | CL48: #BEMERKUNG
A49: T | B49: N:43.1|43 | E49: Liftery
B50: N:43.1|43 | C50: 60121988 | E50: 1 PR.HEEL/TOE LIFTER KIT RAPTOR WCR MM.3 | F50: 36.99 | G50: =F50 * 1.23 -> 45.4977 | AM50: =(SUM(H50:AL50)) -> 0 | AN50: 65 | AO50: =AP50 / 1.23 -> 36.99 | AP50: =G50 * (1-WS_DISCOUNT) -> 45.4977 | AQ50: =((SUM(H50:AL50)) * AP50) -> 0 | AW50: #ART | AX50: #MATKZ | CC50: #DIM-115601 | CD50: #DIM-115602 | CG50: #POSMENGE | CI50: #PREIS-36.99 | CK50: #POSWERT | CL50: #BEMERKUNG
B51: N:43.1|43 | C51: 60121989 | E51: 1 PR.HEEL/TOE LIFTER KIT RAPTOR WCR MM.5 | F51: 42.68 | G51: =F51 * 1.23 -> 52.4964 | AM51: =(SUM(H51:AL51)) -> 0 | AN51: 75 | AO51: =AP51 / 1.23 -> 42.68 | AP51: =G51 * (1-WS_DISCOUNT) -> 52.4964 | AQ51: =((SUM(H51:AL51)) * AP51) -> 0 | AW51: #ART | AX51: #MATKZ | CC51: #DIM-115601 | CD51: #DIM-115602 | CG51: #POSMENGE | CI51: #PREIS-42.68 | CK51: #POSWERT | CL51: #BEMERKUNG
B52: N:43.1|43 | C52: 60123495 | E52: 1 PR.HEEL/TOE LIFTER KIT WCR MM.5 GRIP | F52: 42.68 | G52: =F52 * 1.23 -> 52.4964 | AM52: =(SUM(H52:AL52)) -> 0 | AN52: 75 | AO52: =AP52 / 1.23 -> 42.68 | AP52: =G52 * (1-WS_DISCOUNT) -> 52.4964 | AQ52: =((SUM(H52:AL52)) * AP52) -> 0 | AW52: #ART | AX52: #MATKZ | CD52: #DIM-115602 | CG52: #POSMENGE | CI52: #PREIS-42.68 | CK52: #POSWERT | CL52: #BEMERKUNG
B53: N:43.1|43 | C53: 60121990 | E53: 1 PR.HEEL/TOE LIFTER KIT RAPTOR WCR MM.7 | F53: 48.37 | G53: =F53 * 1.23 -> 59.4951 | AM53: =(SUM(H53:AL53)) -> 0 | AN53: 85 | AO53: =AP53 / 1.23 -> 48.37 | AP53: =G53 * (1-WS_DISCOUNT) -> 59.4951 | AQ53: =((SUM(H53:AL53)) * AP53) -> 0 | AW53: #ART | AX53: #MATKZ | CC53: #DIM-115601 | CD53: #DIM-115602 | CG53: #POSMENGE | CI53: #PREIS-48.37 | CK53: #POSWERT | CL53: #BEMERKUNG

Sheet KASKI
A1: #PRD | B1: #INPUT | C1: http://www.head.com/ | E1: =KASKI!D1 -> 0 | H1: #DD1 | I1: #DD1 | J1: #DD1 | K1: #DD1 | L1: #DD1 | M1: #DD1 | N1: #DD1 | O1: #DD1 | P1: #DD1 | AD1: #FIRST-ADDINFO-COL
A2: =SUM(A10:A10) -> 0 | B2: =SUM(B10:B10) -> 0
A3: B3 has to be empty!!! | C3: Nr klienta | D3: =IF(F_CUST_NO="","",F_CUST_NO) -> NEW | G3: Nr zamówienia | I3: =IF(F_ORDER_NO="","",F_ORDER_NO) -> PRE RACE 24/25 | P3: Data zamówienia | T3: =IF(F_ORDER_DATE<> "",F_ORDER_DATE,"") -> 
A4: Empty Lines: | B4: TRUE | C4: Nazwa firmy | D4: =IF(F_CUST_NAME="","",F_CUST_NAME) ->  | G4: Sales Rep. | I4: =IF(F_SALES_REP="","",F_SALES_REP) -> 2694000|Sales Rep / Poland | P4: Data dostawy | T4: =IF(F_DELDATE1<> "",F_DELDATE1,"") -> 
A5: Delivery Date Total: | B5: TRUE | C5: Adres | D5: =IF(F_CUST_ADDR="","",F_CUST_ADDR) ->  | T5: =IF(F_DELDATE2<> "",F_DELDATE2,"") -> 
A6: Delivery Date 1: | B6: TRUE | G6: Zniżka | T6: =IF(F_DELDATE3<> "",F_DELDATE3,"") -> 
A7: Delivery Date 2: | B7: TRUE
A8: Delivery Date 3: | B8: TRUE
C9: HEAD Sport GmbH - Wuhrkopfweg 1
A10: =SUM($Q$19:$Q$23)+SUM($Q$26:$Q$27) -> 0 | B10: =SUM($U$19:$U$23)+SUM($U$26:$U$27) -> 0 | C10: Wuhrkopfweg 1 - A 6921 Kennelbach Austria | F10: KASKI -kod prod. to link do zdjęcia!
A11: Reserved DD2-QTTY | B11: DD2-Amount | C11: FN 64824 f
A12: Reserved DD3-QTTY | B12: DD3-Amount
A13: Reserved DD4-QTTY | B13: DD4-Amount
A14: Reserved DD5-QTTY | B14: DD5-Amount
A15: Reserved DD6-QTTY | B15: DD6-Amount
A17: GH | B17: N:35| | C17: Racing
A18: H | B18: N:35.1|35 | C18: Kod Art. | E18: Model | F18: Cena Racing Netto | G18: Cena Racing Brutto | H18: XS | I18: S | J18: M | K18: L | L18: XL | M18: XXL | N18: XS/S | O18: M/L | P18: XL/XXL | Q18: Ilość | R18: Rekomend. Cena Detaliczna | S18: NET-Price | T18: Price incl. VAT | U18: Wartość | V18: Uwagi
B19: N:35.1|35 | C19: 320113 | E19: DOWNFORCE MIPS matt black | F19: 739.84 | G19: =F19 * 1.23 -> 910.0032 | Q19: =(SUM(H19:P19)) -> 0 | R19: 1300 | S19: =T19 / 1.23 -> 739.84 | T19: =G19 * (1-WS_DISCOUNT) -> 910.0032 | U19: =((SUM(H19:P19)) * T19) -> 0 | AF19: #ART | AG19: #MATKZ | AK19: #DIM-XS | AL19: #DIM-S | AM19: #DIM-M | AN19: #DIM-L | AO19: #DIM-XL | AP19: #DIM-XXL | AT19: #POSMENGE | AV19: #PREIS-739.84 | AX19: #POSWERT | AY19: #BEMERKUNG
B20: N:35.1|35 | C20: 320224 | E20: DOWNFORCE speedblue/white | F20: 512.2 | G20: =F20 * 1.23 -> 630.006 | Q20: =(SUM(H20:P20)) -> 0 | R20: 900 | S20: =T20 / 1.23 -> 512.2 | T20: =G20 * (1-WS_DISCOUNT) -> 630.006 | U20: =((SUM(H20:P20)) * T20) -> 0 | AF20: #ART | AG20: #MATKZ | AK20: #DIM-XS | AL20: #DIM-S | AM20: #DIM-M | AN20: #DIM-L | AO20: #DIM-XL | AP20: #DIM-XXL | AT20: #POSMENGE | AV20: #PREIS-512.2 | AX20: #POSWERT | AY20: #BEMERKUNG
B21: N:35.1|35 | C21: 320223 | E21: DOWNFORCE white | F21: 512.2 | G21: =F21 * 1.23 -> 630.006 | Q21: =(SUM(H21:P21)) -> 0 | R21: 900 | S21: =T21 / 1.23 -> 512.2 | T21: =G21 * (1-WS_DISCOUNT) -> 630.006 | U21: =((SUM(H21:P21)) * T21) -> 0 | AF21: #ART | AG21: #MATKZ | AK21: #DIM-XS | AL21: #DIM-S | AM21: #DIM-M | AN21: #DIM-L | AO21: #DIM-XL | AP21: #DIM-XXL | AT21: #POSMENGE | AV21: #PREIS-512.2 | AX21: #POSWERT | AY21: #BEMERKUNG
B22: N:35.1|35 | C22: 320323 | E22: DOWNFORCE JR speedblue | F22: 426.83 | G22: =F22 * 1.23 -> 525.0009 | Q22: =(SUM(H22:P22)) -> 0 | R22: 750 | S22: =T22 / 1.23 -> 426.83 | T22: =G22 * (1-WS_DISCOUNT) -> 525.0009 | U22: =((SUM(H22:P22)) * T22) -> 0 | AF22: #ART | AG22: #MATKZ | AK22: #DIM-XS | AL22: #DIM-S | AM22: #DIM-M | AT22: #POSMENGE | AV22: #PREIS-426.83 | AX22: #POSWERT | AY22: #BEMERKUNG
B23: N:35.1|35 | C23: 320413 | E23: TEAM SL white/black | F23: 449.59 | G23: =F23 * 1.23 -> 552.9957 | Q23: =(SUM(H23:P23)) -> 0 | R23: 790 | S23: =T23 / 1.23 -> 449.59 | T23: =G23 * (1-WS_DISCOUNT) -> 552.9957 | U23: =((SUM(H23:P23)) * T23) -> 0 | AF23: #ART | AG23: #MATKZ | AQ23: #DIM-XS/S | AR23: #DIM-M/L | AS23: #DIM-XL/XXL | AT23: #POSMENGE | AV23: #PREIS-449.59 | AX23: #POSWERT | AY23: #BEMERKUNG
A24: GH | B24: N:63| | C24: Akcesoria
A25: H | B25: N:63.1|63 | C25: Kod Art. | E25: Model | F25: Cena Racing Netto | G25: Cena Racing Brutto | H25: QTY | I25: XS/S | J25: M/L | K25: XL/XXL | Q25: Ilość | R25: Rekomend. Cena Detaliczna | S25: NET-Price | T25: Price incl. VAT | U25: Wartość | V25: Uwagi
B26: N:63.1|63 | C26: 378577 | E26: Chinguard | F26: 102.44 | G26: =F26 * 1.23 -> 126.0012 | Q26: =(SUM(H26:P26)) -> 0 | R26: 180 | S26: =T26 / 1.23 -> 102.44 | T26: =G26 * (1-WS_DISCOUNT) -> 126.0012 | U26: =((SUM(H26:P26)) * T26) -> 0 | AF26: #ART | AG26: #MATKZ | AK26: #DIM-QTY | AT26: #POSMENGE | AV26: #PREIS-102.44 | AX26: #POSWERT | AY26: #BEMERKUNG
B27: N:63.1|63 | C27: 378930 | E27: DOWNFORCE FITTING KIT | F27: 51.22 | G27: =F27 * 1.23 -> 63.0006 | Q27: =(SUM(H27:P27)) -> 0 | R27: 90 | S27: =T27 / 1.23 -> 51.22 | T27: =G27 * (1-WS_DISCOUNT) -> 63.0006 | U27: =((SUM(H27:P27)) * T27) -> 0 | AF27: #ART | AG27: #MATKZ | AL27: #DIM-XS/S | AM27: #DIM-M/L | AN27: #DIM-XL/XXL | AT27: #POSMENGE | AV27: #PREIS-51.22 | AX27: #POSWERT | AY27: #BEMERKUNG

Sheet GOGLE
A1: #PRD | B1: #INPUT | C1: http://www.head.com/ | E1: =GOGLE!D1 -> 0 | H1: #DD1 | I1: #DD1 | J1: #DD1 | K1: #DD1 | AD1: #FIRST-ADDINFO-COL
A2: =SUM(A10:A10) -> 0 | B2: =SUM(B10:B10) -> 0
A3: B3 has to be empty!!! | C3: Nr klienta | D3: =IF(F_CUST_NO="","",F_CUST_NO) -> NEW | G3: Nr zamówienia | I3: =IF(F_ORDER_NO="","",F_ORDER_NO) -> PRE RACE 24/25 | P3: Data zamówienia | T3: =IF(F_ORDER_DATE<> "",F_ORDER_DATE,"") -> 
A4: Empty Lines: | B4: TRUE | C4: Nazwa firmy | D4: =IF(F_CUST_NAME="","",F_CUST_NAME) ->  | G4: Sales Rep. | I4: =IF(F_SALES_REP="","",F_SALES_REP) -> 2694000|Sales Rep / Poland | P4: Data dostawy | T4: =IF(F_DELDATE1<> "",F_DELDATE1,"") -> 
A5: Delivery Date Total: | B5: TRUE | C5: Adres | D5: =IF(F_CUST_ADDR="","",F_CUST_ADDR) ->  | T5: =IF(F_DELDATE2<> "",F_DELDATE2,"") -> 
A6: Delivery Date 1: | B6: TRUE | G6: Zniżka | T6: =IF(F_DELDATE3<> "",F_DELDATE3,"") -> 
A7: Delivery Date 2: | B7: TRUE
A8: Delivery Date 3: | B8: TRUE
C9: HEAD Sport GmbH - Wuhrkopfweg 1
A10: =SUM($L$19:$L$25)+SUM($L$28:$L$29)+SUM($L$32:$L$36) -> 0 | B10: =SUM($P$19:$P$25)+SUM($P$28:$P$29)+SUM($P$32:$P$36) -> 0 | C10: Wuhrkopfweg 1 - A 6921 Kennelbach Austria | F10: GOGLE -kod prod. to link do zdjęcia!
A11: Reserved DD2-QTTY | B11: DD2-Amount | C11: FN 64824 f
A12: Reserved DD3-QTTY | B12: DD3-Amount
A13: Reserved DD4-QTTY | B13: DD4-Amount
A14: Reserved DD5-QTTY | B14: DD5-Amount
A15: Reserved DD6-QTTY | B15: DD6-Amount
A17: GH | B17: N:39| | C17: Race
A18: H | B18: N:39.1|39 | C18: Kod Art. | E18: Model | F18: Cena Racing Netto | G18: Cena Racing Brutto | H18: QTY | I18: S | J18: M | K18: L | L18: Ilość | M18: Rekomend. Cena Detaliczna | N18: NET-Price | O18: Price incl. VAT | P18: Wartość | Q18: Uwagi
B19: N:39.1|39 | C19: 390023 | E19: SENTINEL 5K chrome RD + SL | F19: 426.83 | G19: =F19 * 1.23 -> 525.0009 | L19: =(SUM(H19:K19)) -> 0 | M19: 750 | N19: =O19 / 1.23 -> 426.83 | O19: =G19 * (1-WS_DISCOUNT) -> 525.0009 | P19: =((SUM(H19:K19)) * O19) -> 0 | AF19: #ART | AG19: #MATKZ | AK19: #DIM-QTY | AO19: #POSMENGE | AQ19: #PREIS-426.83 | AS19: #POSWERT | AT19: #BEMERKUNG
B20: N:39.1|39 | C20: 390053 | E20: SENTINEL black + SL | F20: 398.37 | G20: 489.9951 | L20: 0 | M20: 700 | N20: 398.37 | O20: 489.9951 | P20: 0 | AF20: #ART | AG20: #MATKZ | AK20: #DIM-QTY | AO20: #POSMENGE | AQ20: #PREIS-398.37 | AS20: #POSWERT | AT20: #BEMERKUNG
B21: N:39.1|39 | C21: 390123 | E21: HORIZON 5K RACE chrome RD + SL | F21: 369.92 | G21: 455.0016 | L21: 0 | M21: 650 | N21: 369.92 | O21: 455.0016 | P21: 0 | AF21: #ART | AG21: #MATKZ | AK21: #DIM-QTY | AO21: #POSMENGE | AQ21: #PREIS-369.92 | AS21: #POSWERT | AT21: #BEMERKUNG
B22: N:39.1|39 | C22: 390143 | E22: HORIZON RACE black + SL | F22: 341.46 | G22: 419.9958 | L22: 0 | M22: 600 | N22: 341.46 | O22: 419.9958 | P22: 0 | AF22: #ART | AG22: #MATKZ | AK22: #DIM-QTY | AO22: #POSMENGE | AQ22: #PREIS-341.46 | AS22: #POSWERT | AT22: #BEMERKUNG
B23: N:39.1|39 | C23: 390154 | E23: NEVES PRO 5K RACE chrome RD + SL | F23: 369.92 | G23: 455.0016 | L23: 0 | M23: 650 | N23: 369.92 | O23: 455.0016 | P23: 0 | AF23: #ART | AG23: #MATKZ | AM23: #DIM-M | AN23: #DIM-L | AO23: #POSMENGE | AQ23: #PREIS-369.92 | AS23: #POSWERT | AT23: #BEMERKUNG
B24: N:39.1|39 | C24: 390163 | E24: CONTEX PRO 5K RACE chrome RD + SL | F24: 341.46 | G24: 419.9958 | L24: 0 | M24: 600 | N24: 341.46 | O24: 419.9958 | P24: 0 | AF24: #ART | AG24: #MATKZ | AL24: #DIM-S | AM24: #DIM-M | AN24: #DIM-L | AO24: #POSMENGE | AQ24: #PREIS-341.46 | AS24: #POSWERT | AT24: #BEMERKUNG
B25: N:39.1|39 | C25: 374420 | E25: GOGGLE PRO BAG | F25: 170.73 | G25: 209.9979 | L25: 0 | M25: 300 | N25: 170.73 | O25: 209.9979 | P25: 0 | AF25: #ART | AG25: #MATKZ | AK25: #DIM-QTY | AO25: #POSMENGE | AQ25: #PREIS-170.73 | AS25: #POSWERT | AT25: #BEMERKUNG
A26: GH | B26: N:67| | C26: Strapy
A27: H | B27: N:67.1|67 | C27: Kod Art. | E27: Model | F27: Cena Racing Netto | G27: Cena Racing Brutto | H27: QTY | L27: Ilość | M27: Rekomend. Cena Detaliczna | N27: NET-Price | O27: Price incl. VAT | P27: Wartość | Q27: Uwagi
B28: N:67.1|67 | C28: 376942 | E28: STRAP silver | F28: 56.91 | G28: =F28 * 1.23 -> 69.9993 | L28: =(SUM(H28:K28)) -> 0 | M28: 100 | N28: =O28 / 1.23 -> 56.91 | O28: =G28 * (1-WS_DISCOUNT) -> 69.9993 | P28: =((SUM(H28:K28)) * O28) -> 0 | AF28: #ART | AG28: #MATKZ | AK28: #DIM-QTY | AO28: #POSMENGE | AQ28: #PREIS-56.91 | AS28: #POSWERT | AT28: #BEMERKUNG
B29: N:67.1|67 | C29: 376953 | E29: STRAP RD | F29: 56.91 | G29: =F29 * 1.23 -> 69.9993 | L29: =(SUM(H29:K29)) -> 0 | M29: 100 | N29: =O29 / 1.23 -> 56.91 | O29: =G29 * (1-WS_DISCOUNT) -> 69.9993 | P29: =((SUM(H29:K29)) * O29) -> 0 | AF29: #ART | AG29: #MATKZ | AK29: #DIM-QTY | AO29: #POSMENGE | AQ29: #PREIS-56.91 | AS29: #POSWERT | AT29: #BEMERKUNG
A30: GH | B30: N:68| | C30: Okulary
A31: H | B31: N:68.1|68 | C31: Kod Art. | E31: Model | F31: Cena Racing Netto | G31: Cena Racing Brutto | H31: QTY | L31: Ilość | M31: Rekomend. Cena Detaliczna | N31: NET-Price | O31: Price incl. VAT | P31: Wartość | Q31: Uwagi
B32: N:68.1|68 | C32: 370003 | E32: SIGNATURE 5K PHOTO | F32: 313.01 | G32: =F32 * 1.23 -> 385.0023 | L32: =(SUM(H32:K32)) -> 0 | M32: 550 | N32: =O32 / 1.23 -> 313.01 | O32: =G32 * (1-WS_DISCOUNT) -> 385.0023 | P32: =((SUM(H32:K32)) * O32) -> 0 | AF32: #ART | AG32: #MATKZ | AK32: #DIM-QTY | AO32: #POSMENGE | AQ32: #PREIS-313.01 | AS32: #POSWERT | AT32: #BEMERKUNG
B33: N:68.1|68 | C33: 370031 | E33: SIGNATURE 5K blue/army grey | F33: 182.11 | G33: =F33 * 1.23 -> 223.9953 | L33: =(SUM(H33:K33)) -> 0 | M33: 320 | N33: =O33 / 1.23 -> 182.11 | O33: =G33 * (1-WS_DISCOUNT) -> 223.9953 | P33: =((SUM(H33:K33)) * O33) -> 0 | AF33: #ART | AG33: #MATKZ | AK33: #DIM-QTY | AO33: #POSMENGE | AQ33: #PREIS-182.11 | AS33: #POSWERT | AT33: #BEMERKUNG
B34: N:68.1|68 | C34: 370021 | E34: SIGNATURE 5K blue/black | F34: 182.11 | G34: =F34 * 1.23 -> 223.9953 | L34: =(SUM(H34:K34)) -> 0 | M34: 320 | N34: =O34 / 1.23 -> 182.11 | O34: =G34 * (1-WS_DISCOUNT) -> 223.9953 | P34: =((SUM(H34:K34)) * O34) -> 0 | AF34: #ART | AG34: #MATKZ | AK34: #DIM-QTY | AO34: #POSMENGE | AQ34: #PREIS-182.11 | AS34: #POSWERT | AT34: #BEMERKUNG
B35: N:68.1|68 | C35: 370043 | E35: SIGNATURE WCR | F35: 153.66 | G35: =F35 * 1.23 -> 189.0018 | L35: =(SUM(H35:K35)) -> 0 | M35: 270 | N35: =O35 / 1.23 -> 153.66 | O35: =G35 * (1-WS_DISCOUNT) -> 189.0018 | P35: =((SUM(H35:K35)) * O35) -> 0 | AF35: #ART | AG35: #MATKZ | AK35: #DIM-QTY | AO35: #POSMENGE | AQ35: #PREIS-153.66 | AS35: #POSWERT | AT35: #BEMERKUNG
B36: N:68.1|68 | C36: 370061 | E36: SIGNATURE black/olive | F36: 153.66 | G36: =F36 * 1.23 -> 189.0018 | L36: =(SUM(H36:K36)) -> 0 | M36: 270 | N36: =O36 / 1.23 -> 153.66 | O36: =G36 * (1-WS_DISCOUNT) -> 189.0018 | P36: =((SUM(H36:K36)) * O36) -> 0 | AF36: #ART | AG36: #MATKZ | AK36: #DIM-QTY | AO36: #POSMENGE | AQ36: #PREIS-153.66 | AS36: #POSWERT | AT36: #BEMERKUNG

Sheet KIJE
A1: #PRD | B1: #INPUT | C1: http://www.head.com/ | E1: =KIJE!D1 -> 0 | H1: #DD1 | I1: #DD1 | J1: #DD1 | K1: #DD1 | L1: #DD1 | M1: #DD1 | N1: #DD1 | O1: #DD1 | P1: #DD1 | Q1: #DD1 | R1: #DD1 | S1: #DD1 | AD1: #FIRST-ADDINFO-COL
A2: =SUM(A10:A10) -> 0 | B2: =SUM(B10:B10) -> 0
A3: B3 has to be empty!!! | C3: Nr klienta | D3: =IF(F_CUST_NO="","",F_CUST_NO) -> NEW | G3: Nr zamówienia | I3: =IF(F_ORDER_NO="","",F_ORDER_NO) -> PRE RACE 24/25 | P3: Data zamówienia | T3: =IF(F_ORDER_DATE<> "",F_ORDER_DATE,"") -> 
A4: Empty Lines: | B4: TRUE | C4: Nazwa firmy | D4: =IF(F_CUST_NAME="","",F_CUST_NAME) ->  | G4: Sales Rep. | I4: =IF(F_SALES_REP="","",F_SALES_REP) -> 2694000|Sales Rep / Poland | P4: Data dostawy | T4: =IF(F_DELDATE1<> "",F_DELDATE1,"") -> 
A5: Delivery Date Total: | B5: TRUE | C5: Adres | D5: =IF(F_CUST_ADDR="","",F_CUST_ADDR) ->  | T5: =IF(F_DELDATE2<> "",F_DELDATE2,"") -> 
A6: Delivery Date 1: | B6: TRUE | G6: Zniżka | T6: =IF(F_DELDATE3<> "",F_DELDATE3,"") -> 
A7: Delivery Date 2: | B7: TRUE
A8: Delivery Date 3: | B8: TRUE
C9: HEAD Sport GmbH - Wuhrkopfweg 1
A10: =SUM($T$19:$T$26) -> 0 | B10: =SUM($X$19:$X$26) -> 0 | C10: Wuhrkopfweg 1 - A 6921 Kennelbach Austria | F10: KIJE -kod prod. to link do zdjęcia!
A11: Reserved DD2-QTTY | B11: DD2-Amount | C11: FN 64824 f
A12: Reserved DD3-QTTY | B12: DD3-Amount
A13: Reserved DD4-QTTY | B13: DD4-Amount
A14: Reserved DD5-QTTY | B14: DD5-Amount
A15: Reserved DD6-QTTY | B15: DD6-Amount
A17: GH | B17: N:41| | C17: Kije
A18: H | B18: N:41.1|41 | C18: Kod Art. | E18: Model | F18: Cena Racing Netto | G18: Cena Racing Brutto | H18: QTY | I18: 090 | J18: 095 | K18: 100 | L18: 105 | M18: 110 | N18: 115 | O18: 120 | P18: 125 | Q18: 130 | R18: 135 | S18: 140 | T18: Ilość | U18: Rekomend. Cena Detaliczna | V18: NET-Price | W18: Price incl. VAT | X18: Wartość | Y18: Uwagi
B19: N:41.1|41 | C19: 381054 | E19: Worldcup SG | F19: 221.95 | G19: =F19 * 1.23 -> 272.9985 | T19: =(SUM(H19:S19)) -> 0 | U19: 390 | V19: =W19 / 1.23 -> 221.95 | W19: =G19 * (1-WS_DISCOUNT) -> 272.9985 | X19: =((SUM(H19:S19)) * W19) -> 0 | AF19: #ART | AG19: #MATKZ | AP19: #DIM-110 | AQ19: #DIM-115 | AR19: #DIM-120 | AS19: #DIM-125 | AT19: #DIM-130 | AU19: #DIM-135 | AW19: #POSMENGE | AY19: #PREIS-221.95 | BA19: #POSWERT | BB19: #BEMERKUNG
B20: N:41.1|41 | C20: 381074 | E20: Worldcup SL white | F20: 199.19 | G20: 245.0037 | T20: 0 | U20: 350 | V20: 199.19 | W20: 245.0037 | X20: 0 | AF20: #ART | AG20: #MATKZ | AP20: #DIM-110 | AQ20: #DIM-115 | AR20: #DIM-120 | AS20: #DIM-125 | AT20: #DIM-130 | AU20: #DIM-135 | AV20: #DIM-140 | AW20: #POSMENGE | AY20: #PREIS-199.19 | BA20: #POSWERT | BB20: #BEMERKUNG
B21: N:41.1|41 | C21: 381174 | E21: Worldcup SL speed blue | F21: 199.19 | G21: 245.0037 | T21: 0 | U21: 350 | V21: 199.19 | W21: 245.0037 | X21: 0 | AF21: #ART | AG21: #MATKZ | AP21: #DIM-110 | AQ21: #DIM-115 | AR21: #DIM-120 | AS21: #DIM-125 | AT21: #DIM-130 | AU21: #DIM-135 | AV21: #DIM-140 | AW21: #POSMENGE | AY21: #PREIS-199.19 | BA21: #POSWERT | BB21: #BEMERKUNG
B22: N:41.1|41 | C22: 381204 | E22: Worldcup Rebels Carbon white | F22: 369.92 | G22: 455.0016 | T22: 0 | U22: 650 | V22: 369.92 | W22: 455.0016 | X22: 0 | AF22: #ART | AG22: #MATKZ | AO22: #DIM-105 | AP22: #DIM-110 | AQ22: #DIM-115 | AR22: #DIM-120 | AS22: #DIM-125 | AT22: #DIM-130 | AU22: #DIM-135 | AV22: #DIM-140 | AW22: #POSMENGE | AY22: #PREIS-369.92 | BA22: #POSWERT | BB22: #BEMERKUNG
B23: N:41.1|41 | C23: 381214 | E23: Worldcup Rebels Carbon speed blue | F23: 369.92 | G23: 455.0016 | T23: 0 | U23: 650 | V23: 369.92 | W23: 455.0016 | X23: 0 | AF23: #ART | AG23: #MATKZ | AO23: #DIM-105 | AP23: #DIM-110 | AQ23: #DIM-115 | AR23: #DIM-120 | AS23: #DIM-125 | AT23: #DIM-130 | AU23: #DIM-135 | AV23: #DIM-140 | AW23: #POSMENGE | AY23: #PREIS-369.92 | BA23: #POSWERT | BB23: #BEMERKUNG
B24: N:41.1|41 | C24: 381084 | E24: Worldcup SL JR | F24: 136.59 | G24: 168.0057 | T24: 0 | U24: 240 | V24: 136.59 | W24: 168.0057 | X24: 0 | AF24: #ART | AG24: #MATKZ | AL24: #DIM-090 | AM24: #DIM-095 | AN24: #DIM-100 | AO24: #DIM-105 | AP24: #DIM-110 | AW24: #POSMENGE | AY24: #PREIS-136.59 | BA24: #POSWERT | BB24: #BEMERKUNG
B25: N:41.1|41 | C25: 381064 | E25: Worldcup SG JR | F25: 136.59 | G25: 168.0057 | T25: 0 | U25: 240 | V25: 136.59 | W25: 168.0057 | X25: 0 | AF25: #ART | AG25: #MATKZ | AL25: #DIM-090 | AM25: #DIM-095 | AN25: #DIM-100 | AO25: #DIM-105 | AP25: #DIM-110 | AW25: #POSMENGE | AY25: #PREIS-136.59 | BA25: #POSWERT | BB25: #BEMERKUNG
B26: N:41.1|41 | C26: 381340 | E26: HEAD WC SL Protector | F26: 159.35 | G26: 196.0005 | T26: 0 | U26: 280 | V26: 159.35 | W26: 196.0005 | X26: 0 | AF26: #ART | AG26: #MATKZ | AK26: #DIM-QTY | AW26: #POSMENGE | AY26: #PREIS-159.35 | BA26: #POSWERT | BB26: #BEMERKUNG

Sheet TORBY
A1: #PRD | B1: #INPUT | C1: http://www.head.com/ | E1: =TORBY!D1 -> 0 | H1: #DD1 | I1: #DD1 | AD1: #FIRST-ADDINFO-COL
A2: =SUM(A10:A10) -> 0 | B2: =SUM(B10:B10) -> 0
A3: B3 has to be empty!!! | C3: Nr klienta | D3: =IF(F_CUST_NO="","",F_CUST_NO) -> NEW | G3: Nr zamówienia | I3: =IF(F_ORDER_NO="","",F_ORDER_NO) -> PRE RACE 24/25 | P3: Data zamówienia | T3: =IF(F_ORDER_DATE<> "",F_ORDER_DATE,"") -> 
A4: Empty Lines: | B4: TRUE | C4: Nazwa firmy | D4: =IF(F_CUST_NAME="","",F_CUST_NAME) ->  | G4: Sales Rep. | I4: =IF(F_SALES_REP="","",F_SALES_REP) -> 2694000|Sales Rep / Poland | P4: Data dostawy | T4: =IF(F_DELDATE1<> "",F_DELDATE1,"") -> 
A5: Delivery Date Total: | B5: TRUE | C5: Adres | D5: =IF(F_CUST_ADDR="","",F_CUST_ADDR) ->  | T5: =IF(F_DELDATE2<> "",F_DELDATE2,"") -> 
A6: Delivery Date 1: | B6: TRUE | G6: Zniżka | T6: =IF(F_DELDATE3<> "",F_DELDATE3,"") -> 
A7: Delivery Date 2: | B7: TRUE
A8: Delivery Date 3: | B8: TRUE
C9: HEAD Sport GmbH - Wuhrkopfweg 1
A10: =SUM($J$19:$J$29) -> 0 | B10: =SUM($N$19:$N$29) -> 0 | C10: Wuhrkopfweg 1 - A 6921 Kennelbach Austria | F10: TORBY -kod prod. to link do zdjęcia!
A11: Reserved DD2-QTTY | B11: DD2-Amount | C11: FN 64824 f
A12: Reserved DD3-QTTY | B12: DD3-Amount
A13: Reserved DD4-QTTY | B13: DD4-Amount
A14: Reserved DD5-QTTY | B14: DD5-Amount
A15: Reserved DD6-QTTY | B15: DD6-Amount
A17: GH | B17: N:42| | C17: Rebels Line
A18: H | B18: N:42.1|42 | C18: Kod Art. | E18: Model | F18: Cena Racing Netto | G18: Cena Racing Brutto | H18: QTY | I18: 230 | J18: Ilość | K18: Rekomend. Cena Detaliczna | L18: NET-Price | M18: Price incl. VAT | N18: Wartość | O18: Uwagi
B19: N:42.1|42 | C19: 383034 | E19: Rebels Racing Backpack L | F19: 364.23 | G19: =F19 * 1.23 -> 448.0029 | J19: =(SUM(H19:I19)) -> 0 | K19: 640 | L19: =M19 / 1.23 -> 364.23 | M19: =G19 * (1-WS_DISCOUNT) -> 448.0029 | N19: =((SUM(H19:I19)) * M19) -> 0 | AF19: #ART | AG19: #MATKZ | AK19: #DIM-QTY | AM19: #POSMENGE | AO19: #PREIS-364.23 | AQ19: #POSWERT | AR19: #BEMERKUNG
B20: N:42.1|42 | C20: 383044 | E20: Rebels Racing Backpack S | F20: 335.77 | G20: 412.9971 | J20: 0 | K20: 590 | L20: 335.77 | M20: 412.9971 | N20: 0 | AF20: #ART | AG20: #MATKZ | AK20: #DIM-QTY | AM20: #POSMENGE | AO20: #PREIS-335.77 | AQ20: #POSWERT | AR20: #BEMERKUNG
B21: N:42.1|42 | C21: 383964 | E21: Rebels Coaches Backpack | F21: 506.5 | G21: 622.995 | J21: 0 | K21: 890 | L21: 506.5 | M21: 622.995 | N21: 0 | AF21: #ART | AG21: #MATKZ | AK21: #DIM-QTY | AM21: #POSMENGE | AO21: #PREIS-506.5 | AQ21: #POSWERT | AR21: #BEMERKUNG
B22: N:42.1|42 | C22: 383923 | E22: Rebels Boot Carry On | F22: 147.97 | G22: 182.0031 | J22: 0 | K22: 260 | L22: 147.97 | M22: 182.0031 | N22: 0 | AF22: #ART | AG22: #MATKZ | AK22: #DIM-QTY | AM22: #POSMENGE | AO22: #PREIS-147.97 | AQ22: #POSWERT | AR22: #BEMERKUNG
B23: N:42.1|42 | C23: 383013 | E23: Rebels Backpack | F23: 227.64 | G23: 279.9972 | J23: 0 | K23: 400 | L23: 227.64 | M23: 279.9972 | N23: 0 | AF23: #ART | AG23: #MATKZ | AK23: #DIM-QTY | AM23: #POSMENGE | AO23: #PREIS-227.64 | AQ23: #POSWERT | AR23: #BEMERKUNG
B24: N:42.1|42 | C24: 383193 | E24: Heatable Bootbag | F24: 626.02 | G24: 770.0046 | J24: 0 | K24: 1100 | L24: 626.02 | M24: 770.0046 | N24: 0 | AF24: #ART | AG24: #MATKZ | AL24: #DIM-230 | AM24: #POSMENGE | AO24: #PREIS-626.02 | AQ24: #POSWERT | AR24: #BEMERKUNG
B25: N:42.1|42 | C25: 383003 | E25: Rebels Travelbag | F25: 500.81 | G25: 615.9963 | J25: 0 | K25: 880 | L25: 500.81 | M25: 615.9963 | N25: 0 | AF25: #ART | AG25: #MATKZ | AK25: #DIM-QTY | AM25: #POSMENGE | AO25: #PREIS-500.81 | AQ25: #POSWERT | AR25: #BEMERKUNG
B26: N:42.1|42 | C26: 383023 | E26: Rebels Double Skibag | F26: 358.54 | G26: 441.0042 | J26: 0 | K26: 630 | L26: 358.54 | M26: 441.0042 | N26: 0 | AF26: #ART | AG26: #MATKZ | AK26: #DIM-QTY | AM26: #POSMENGE | AO26: #PREIS-358.54 | AQ26: #POSWERT | AR26: #BEMERKUNG
B27: N:42.1|42 | C27: 383933 | E27: Rebels Single Skibag | F27: 147.97 | G27: 182.0031 | J27: 0 | K27: 260 | L27: 147.97 | M27: 182.0031 | N27: 0 | AF27: #ART | AG27: #MATKZ | AK27: #DIM-QTY | AM27: #POSMENGE | AO27: #PREIS-147.97 | AQ27: #POSWERT | AR27: #BEMERKUNG
B28: N:42.1|42 | C28: 383953 | E28: Rebels Single Skibag 180cm | F28: 147.97 | G28: 182.0031 | J28: 0 | K28: 260 | L28: 147.97 | M28: 182.0031 | N28: 0 | AF28: #ART | AG28: #MATKZ | AK28: #DIM-QTY | AM28: #POSMENGE | AO28: #PREIS-147.97 | AQ28: #POSWERT | AR28: #BEMERKUNG
B29: N:42.1|42 | C29: 383283 | E29: SMU 4 Pairs Skibag | F29: 768.29 | G29: 944.9967 | J29: 0 | K29: 1350 | L29: 768.29 | M29: 944.9967 | N29: 0 | AF29: #ART | AG29: #MATKZ | AK29: #DIM-QTY | AM29: #POSMENGE | AO29: #PREIS-768.29 | AQ29: #POSWERT | AR29: #BEMERKUNG

Sheet ODZIEŻ RACE
A1: #PRD | B1: #INPUT | C1: http://www.head.com/ | E1: ='ODZIEŻ RACE'!D1 -> 0 | I1: #DD1 | J1: #DD1 | K1: #DD1 | L1: #DD1 | M1: #DD1 | N1: #DD1 | O1: #DD1 | P1: #DD1 | Q1: #DD1 | R1: #DD1 | S1: #DD1 | T1: #DD1 | U1: #DD1 | V1: #DD1 | W1: #DD1 | AF1: #FIRST-ADDINFO-COL
A2: =SUM(A10:A10) -> 0 | B2: =SUM(B10:B10) -> 0
A3: B3 has to be empty!!! | C3: Nr klienta | D3: =IF(F_CUST_NO="","",F_CUST_NO) -> NEW | G3: Nr zamówienia | I3: =IF(F_ORDER_NO="","",F_ORDER_NO) -> PRE RACE 24/25 | P3: Data zamówienia | T3: =IF(F_ORDER_DATE<> "",F_ORDER_DATE,"") -> 
A4: Empty Lines: | B4: TRUE | C4: Nazwa firmy | D4: =IF(F_CUST_NAME="","",F_CUST_NAME) ->  | G4: Sales Rep. | I4: =IF(F_SALES_REP="","",F_SALES_REP) -> 2694000|Sales Rep / Poland | P4: Data dostawy | T4: =IF(F_DELDATE1<> "",F_DELDATE1,"") -> 
A5: Delivery Date Total: | B5: TRUE | C5: Adres | D5: =IF(F_CUST_ADDR="","",F_CUST_ADDR) ->  | T5: =IF(F_DELDATE2<> "",F_DELDATE2,"") -> 
A6: Delivery Date 1: | B6: TRUE | G6: Zniżka | T6: =IF(F_DELDATE3<> "",F_DELDATE3,"") -> 
A7: Delivery Date 2: | B7: TRUE
A8: Delivery Date 3: | B8: TRUE
C9: HEAD Sport GmbH - Wuhrkopfweg 1
A10: =SUM($X$19:$X$37)+SUM($X$40:$X$61)+SUM($X$64:$X$72)+SUM($X$75:$X$84) -> 0 | B10: =SUM($AB$19:$AB$37)+SUM($AB$40:$AB$61)+SUM($AB$64:$AB$72)+SUM($AB$75:$AB$84) -> 0 | C10: Wuhrkopfweg 1 - A 6921 Kennelbach Austria | F10: ODZIEŻ RACE -kod prod. to link do zdjęcia!
A11: Reserved DD2-QTTY | B11: DD2-Amount | C11: FN 64824 f
A12: Reserved DD3-QTTY | B12: DD3-Amount
A13: Reserved DD4-QTTY | B13: DD4-Amount
A14: Reserved DD5-QTTY | B14: DD5-Amount
A15: Reserved DD6-QTTY | B15: DD6-Amount
A17: GH | B17: N:58| | C17: Unisex
A18: H | B18: N:58.1|58 | C18: Kod Art. | E18: Model | F18: Kolor | G18: Cena Racing Netto | H18: Cena Racing Brutto | I18: QTY | J18: XS | K18: S | L18: M | M18: M/L | N18: L | O18: XL | P18: XXL | X18: Ilość | Y18: Rekomend. Cena Detaliczna | Z18: NET-Price | AA18: Price incl. VAT | AB18: Wartość | AC18: Uwagi
B19: N:58.1|58 | C19: 821504 | E19: RACE FIS Suit Unisex | F19: YVBK | G19: 1524.39 | H19: =G19 * 1.23 -> 1874.9997 | X19: =(SUM(I19:W19)) -> 0 | Y19: 2500 | Z19: =AA19 / 1.23 -> 1524.39 | AA19: =H19 * (1-WS_DISCOUNT) -> 1874.9997 | AB19: =((SUM(I19:W19)) * AA19) -> 0 | AH19: #ART | AI19: #MATKZ | AO19: #DIM-YVBKXS | AP19: #DIM-YVBKS | AQ19: #DIM-YVBKM | AS19: #DIM-YVBKL | AT19: #DIM-YVBKXL | AU19: #DIM-YVBKXXL | BC19: #POSMENGE | BE19: #PREIS-1524.39 | BG19: #POSWERT | BH19: #BEMERKUNG
B20: N:58.1|58 | C20: 821514 | E20: RACE FIS Suit unpadded Unisex | F20: YVBK | G20: 1402.44 | H20: 1725.0012 | X20: 0 | Y20: 2300 | Z20: 1402.44 | AA20: 1725.0012 | AB20: 0 | AH20: #ART | AI20: #MATKZ | AO20: #DIM-YVBKXS | AP20: #DIM-YVBKS | AQ20: #DIM-YVBKM | AS20: #DIM-YVBKL | AT20: #DIM-YVBKXL | AU20: #DIM-YVBKXXL | BC20: #POSMENGE | BE20: #PREIS-1402.44 | BG20: #POSWERT | BH20: #BEMERKUNG
B21: N:58.1|58 | C21: 821524 | E21: RACE Suit Unisex | F21: YVBK | G21: 1128.05 | H21: 1387.5015 | X21: 0 | Y21: 1850 | Z21: 1128.05 | AA21: 1387.5015 | AB21: 0 | AH21: #ART | AI21: #MATKZ | AO21: #DIM-YVBKXS | AP21: #DIM-YVBKS | AQ21: #DIM-YVBKM | AS21: #DIM-YVBKL | AT21: #DIM-YVBKXL | AU21: #DIM-YVBKXXL | BC21: #POSMENGE | BE21: #PREIS-1128.05 | BG21: #POSWERT | BH21: #BEMERKUNG
B22: N:58.1|58 | C22: 821544 | E22: RACE Shorts Unisex | F22: BK | G22: 518.29 | H22: 637.4967 | X22: 0 | Y22: 850 | Z22: 518.29 | AA22: 637.4967 | AB22: 0 | AH22: #ART | AI22: #MATKZ | AO22: #DIM-BK XS | AP22: #DIM-BK S | AQ22: #DIM-BK M | AS22: #DIM-BK L | AT22: #DIM-BK XL | AU22: #DIM-BK XXL | BC22: #POSMENGE | BE22: #PREIS-518.29 | BG22: #POSWERT | BH22: #BEMERKUNG
B23: N:58.1|58 | C23: 821534 | E23: RACE Rain Coat Unisex | F23: BK | G23: 609.76 | H23: 750.0048 | X23: 0 | Y23: 1000 | Z23: 609.76 | AA23: 750.0048 | AB23: 0 | AH23: #ART | AI23: #MATKZ | AO23: #DIM-BK XS | AP23: #DIM-BK S | AQ23: #DIM-BK M | AS23: #DIM-BK L | AT23: #DIM-BK XL | AU23: #DIM-BK XXL | BC23: #POSMENGE | BE23: #PREIS-609.76 | BG23: #POSWERT | BH23: #BEMERKUNG
B24: N:58.1|58 | C24: 821534 | E24: RACE Rain Coat Unisex | F24: BL | G24: 609.76 | H24: 750.0048 | X24: 0 | Y24: 1000 | Z24: 609.76 | AA24: 750.0048 | AB24: 0 | AH24: #ART | AI24: #MATKZ | AO24: #DIM-BL XS | AP24: #DIM-BL S | AQ24: #DIM-BL M | AS24: #DIM-BL L | AT24: #DIM-BL XL | AU24: #DIM-BL XXL | BC24: #POSMENGE | BE24: #PREIS-609.76 | BG24: #POSWERT | BH24: #BEMERKUNG
B25: N:58.1|58 | C25: 821322 | E25: RACE ZIP Pants Men | F25: BK | G25: 975.61 | H25: 1200.0003 | X25: 0 | Y25: 1600 | Z25: 975.61 | AA25: 1200.0003 | AB25: 0 | AH25: #ART | AI25: #MATKZ | AP25: #DIM-BK S | AQ25: #DIM-BK M | AR25: #DIM-BK M/L | AS25: #DIM-BK L | AT25: #DIM-BK XL | AU25: #DIM-BK XXL | BC25: #POSMENGE | BE25: #PREIS-975.61 | BG25: #POSWERT | BH25: #BEMERKUNG
B26: N:58.1|58 | C26: 821564 | E26: RACE Hoodie Unisex | F26: BK | G26: 280.49 | H26: 345.0027 | X26: 0 | Y26: 460 | Z26: 280.49 | AA26: 345.0027 | AB26: 0 | AH26: #ART | AI26: #MATKZ | AO26: #DIM-BK XS | AP26: #DIM-BK S | AQ26: #DIM-BK M | AS26: #DIM-BK L | AT26: #DIM-BK XL | AU26: #DIM-BK XXL | BC26: #POSMENGE | BE26: #PREIS-280.49 | BG26: #POSWERT | BH26: #BEMERKUNG
B27: N:58.1|58 | C27: 821564 | E27: RACE Hoodie Unisex | F27: BL | G27: 280.49 | H27: 345.0027 | X27: 0 | Y27: 460 | Z27: 280.49 | AA27: 345.0027 | AB27: 0 | AH27: #ART | AI27: #MATKZ | AO27: #DIM-BL XS | AP27: #DIM-BL S | AQ27: #DIM-BL M | AS27: #DIM-BL L | AT27: #DIM-BL XL | AU27: #DIM-BL XXL | BC27: #POSMENGE | BE27: #PREIS-280.49 | BG27: #POSWERT | BH27: #BEMERKUNG
B28: N:58.1|58 | C28: 821564 | E28: RACE Hoodie Unisex | F28: WH | G28: 280.49 | H28: 345.0027 | X28: 0 | Y28: 460 | Z28: 280.49 | AA28: 345.0027 | AB28: 0 | AH28: #ART | AI28: #MATKZ | AO28: #DIM-WH XS | AP28: #DIM-WH S | AQ28: #DIM-WH M | AS28: #DIM-WH L | AT28: #DIM-WH XL | AU28: #DIM-WH XXL | BC28: #POSMENGE | BE28: #PREIS-280.49 | BG28: #POSWERT | BH28: #BEMERKUNG
B29: N:58.1|58 | C29: 821992 | E29: RACE SERVICE JOGGING Pants | F29: BK | G29: 420.73 | H29: 517.4979 | X29: 0 | Y29: 690 | Z29: 420.73 | AA29: 517.4979 | AB29: 0 | AH29: #ART | AI29: #MATKZ | AP29: #DIM-BK S | AQ29: #DIM-BK M | AR29: #DIM-BK M/L | AS29: #DIM-BK L | AT29: #DIM-BK XL | AU29: #DIM-BK XXL | BC29: #POSMENGE | BE29: #PREIS-420.73 | BG29: #POSWERT | BH29: #BEMERKUNG
B30: N:58.1|58 | C30: 821634 | E30: HEAD FZ Hoodie Unisex | F30: BK | G30: 335.37 | H30: 412.5051 | X30: 0 | Y30: 550 | Z30: 335.37 | AA30: 412.5051 | AB30: 0 | AH30: #ART | AI30: #MATKZ | AO30: #DIM-BK XS | AP30: #DIM-BK S | AQ30: #DIM-BK M | AS30: #DIM-BK L | AT30: #DIM-BK XL | AU30: #DIM-BK XXL | BC30: #POSMENGE | BE30: #PREIS-335.37 | BG30: #POSWERT | BH30: #BEMERKUNG
B31: N:58.1|58 | C31: 821654 | E31: WCR Hoodie Unisex | F31: BK | G31: 280.49 | H31: 345.0027 | X31: 0 | Y31: 460 | Z31: 280.49 | AA31: 345.0027 | AB31: 0 | AH31: #ART | AI31: #MATKZ | AO31: #DIM-BK XS | AP31: #DIM-BK S | AQ31: #DIM-BK M | AS31: #DIM-BK L | AT31: #DIM-BK XL | AU31: #DIM-BK XXL | BC31: #POSMENGE | BE31: #PREIS-280.49 | BG31: #POSWERT | BH31: #BEMERKUNG
B32: N:58.1|58 | C32: 827169 | E32: HEAD Beanie | F32: DYBK | G32: 100.98 | H32: 124.2054 | X32: 0 | Y32: 180 | Z32: 100.98 | AA32: 124.2054 | AB32: 0 | AH32: #ART | AI32: #MATKZ | AN32: #DIM-DYBK | BC32: #POSMENGE | BE32: #PREIS-100.98 | BG32: #POSWERT | BH32: #BEMERKUNG
B33: N:58.1|58 | C33: 827169 | E33: HEAD Beanie | F33: OCBK | G33: 100.98 | H33: 124.2054 | X33: 0 | Y33: 180 | Z33: 100.98 | AA33: 124.2054 | AB33: 0 | AH33: #ART | AI33: #MATKZ | AN33: #DIM-OCBK | BC33: #POSMENGE | BE33: #PREIS-100.98 | BG33: #POSWERT | BH33: #BEMERKUNG
B34: N:58.1|58 | C34: 827169 | E34: HEAD Beanie | F34: OLBK | G34: 100.98 | H34: 124.2054 | X34: 0 | Y34: 180 | Z34: 100.98 | AA34: 124.2054 | AB34: 0 | AH34: #ART | AI34: #MATKZ | AN34: #DIM-OLBK | BC34: #POSMENGE | BE34: #PREIS-100.98 | BG34: #POSWERT | BH34: #BEMERKUNG
B35: N:58.1|58 | C35: 827169 | E35: HEAD Beanie | F35: RDBK | G35: 100.98 | H35: 124.2054 | X35: 0 | Y35: 180 | Z35: 100.98 | AA35: 124.2054 | AB35: 0 | AH35: #ART | AI35: #MATKZ | AN35: #DIM-RDBK | BC35: #POSMENGE | BE35: #PREIS-100.98 | BG35: #POSWERT | BH35: #BEMERKUNG
B36: N:58.1|58 | C36: 827169 | E36: HEAD Beanie | F36: WHBK | G36: 100.98 | H36: 124.2054 | X36: 0 | Y36: 180 | Z36: 100.98 | AA36: 124.2054 | AB36: 0 | AH36: #ART | AI36: #MATKZ | AN36: #DIM-WHBK | BC36: #POSMENGE | BE36: #PREIS-100.98 | BG36: #POSWERT | BH36: #BEMERKUNG
B37: N:58.1|58 | C37: 828018 | E37: Flexion Suspenders | F37: BK | G37: 100.98 | H37: 124.2054 | X37: 0 | Y37: 180 | Z37: 100.98 | AA37: 124.2054 | AB37: 0 | AH37: #ART | AI37: #MATKZ | AN37: #DIM-BK | BC37: #POSMENGE | BE37: #PREIS-100.98 | BG37: #POSWERT | BH37: #BEMERKUNG
A38: GH | B38: N:69| | C38: MEN
A39: H | B39: N:69.1|69 | C39: Kod Art. | E39: Model | F39: Kolor | G39: Cena Racing Netto | H39: Cena Racing Brutto | I39: 42 | J39: 44 | K39: 46 | L39: 48 | M39: 50 | N39: 52 | O39: 54 | P39: 56 | Q39: 58 | R39: S | S39: M | T39: M/L | U39: L | V39: XL | W39: XXL | X39: Ilość | Y39: Rekomend. Cena Detaliczna | Z39: NET-Price | AA39: Price incl. VAT | AB39: Wartość | AC39: Uwagi
B40: N:69.1|69 | C40: 821624 | E40: RACE SOFTSHELL Jacket Men | F40: BK | G40: 701.22 | H40: =G40 * 1.23 -> 862.5006 | X40: =(SUM(I40:W40)) -> 0 | Y40: 1150 | Z40: =AA40 / 1.23 -> 701.22 | AA40: =H40 * (1-WS_DISCOUNT) -> 862.5006 | AB40: =((SUM(I40:W40)) * AA40) -> 0 | AH40: #ART | AI40: #MATKZ | AP40: #DIM-BK 46 | AQ40: #DIM-BK 48 | AR40: #DIM-BK 50 | AS40: #DIM-BK 52 | AT40: #DIM-BK 54 | AU40: #DIM-BK 56 | AV40: #DIM-BK 58 | BC40: #POSMENGE | BE40: #PREIS-701.22 | BG40: #POSWERT | BH40: #BEMERKUNG
B41: N:69.1|69 | C41: 821252 | E41: RACE TEAM Jacket Men | F41: BK | G41: 1768.29 | H41: 2174.9967 | X41: 0 | Y41: 2900 | Z41: 1768.29 | AA41: 2174.9967 | AB41: 0 | AH41: #ART | AI41: #MATKZ | AW41: #DIM-BK S | AX41: #DIM-BK M | AY41: #DIM-BK M/L | AZ41: #DIM-BK L | BA41: #DIM-BK XL | BB41: #DIM-BK XXL | BC41: #POSMENGE | BE41: #PREIS-1768.29 | BG41: #POSWERT | BH41: #BEMERKUNG
B42: N:69.1|69 | C42: 821262 | E42: RACE TEAM Pants Men | F42: BK | G42: 1524.39 | H42: 1874.9997 | X42: 0 | Y42: 2500 | Z42: 1524.39 | AA42: 1874.9997 | AB42: 0 | AH42: #ART | AI42: #MATKZ | AW42: #DIM-BK S | AX42: #DIM-BK M | AY42: #DIM-BK M/L | AZ42: #DIM-BK L | BA42: #DIM-BK XL | BB42: #DIM-BK XXL | BC42: #POSMENGE | BE42: #PREIS-1524.39 | BG42: #POSWERT | BH42: #BEMERKUNG
B43: N:69.1|69 | C43: 821574 | E43: RACE NOVA Jacket Men | F43: BKBL | G43: 1341.46 | H43: 1649.9958 | X43: 0 | Y43: 2200 | Z43: 1341.46 | AA43: 1649.9958 | AB43: 0 | AH43: #ART | AI43: #MATKZ | AN43: #DIM-BKBL42 | AO43: #DIM-BKBL44 | AP43: #DIM-BKBL46 | AQ43: #DIM-BKBL48 | AR43: #DIM-BKBL50 | AS43: #DIM-BKBL52 | AT43: #DIM-BKBL54 | AU43: #DIM-BKBL56 | AV43: #DIM-BKBL58 | BC43: #POSMENGE | BE43: #PREIS-1341.46 | BG43: #POSWERT | BH43: #BEMERKUNG
B44: N:69.1|69 | C44: 821574 | E44: RACE NOVA Jacket Men | F44: BKDY | G44: 1341.46 | H44: 1649.9958 | X44: 0 | Y44: 2200 | Z44: 1341.46 | AA44: 1649.9958 | AB44: 0 | AH44: #ART | AI44: #MATKZ | AN44: #DIM-BKDY42 | AO44: #DIM-BKDY44 | AP44: #DIM-BKDY46 | AQ44: #DIM-BKDY48 | AR44: #DIM-BKDY50 | AS44: #DIM-BKDY52 | AT44: #DIM-BKDY54 | AU44: #DIM-BKDY56 | AV44: #DIM-BKDY58 | BC44: #POSMENGE | BE44: #PREIS-1341.46 | BG44: #POSWERT | BH44: #BEMERKUNG
B45: N:69.1|69 | C45: 821574 | E45: RACE NOVA Jacket Men | F45: BKWH | G45: 1341.46 | H45: 1649.9958 | X45: 0 | Y45: 2200 | Z45: 1341.46 | AA45: 1649.9958 | AB45: 0 | AH45: #ART | AI45: #MATKZ | AN45: #DIM-BKWH42 | AO45: #DIM-BKWH44 | AP45: #DIM-BKWH46 | AQ45: #DIM-BKWH48 | AR45: #DIM-BKWH50 | AS45: #DIM-BKWH52 | AT45: #DIM-BKWH54 | AU45: #DIM-BKWH56 | AV45: #DIM-BKWH58 | BC45: #POSMENGE | BE45: #PREIS-1341.46 | BG45: #POSWERT | BH45: #BEMERKUNG
B46: N:69.1|69 | C46: 821584 | E46: RACE NOVA Pants Men | F46: BKBL | G46: 1036.59 | H46: 1275.0057 | X46: 0 | Y46: 1700 | Z46: 1036.59 | AA46: 1275.0057 | AB46: 0 | AH46: #ART | AI46: #MATKZ | AN46: #DIM-BKBL42 | AO46: #DIM-BKBL44 | AP46: #DIM-BKBL46 | AQ46: #DIM-BKBL48 | AR46: #DIM-BKBL50 | AS46: #DIM-BKBL52 | AT46: #DIM-BKBL54 | AU46: #DIM-BKBL56 | AV46: #DIM-BKBL58 | BC46: #POSMENGE | BE46: #PREIS-1036.59 | BG46: #POSWERT | BH46: #BEMERKUNG
B47: N:69.1|69 | C47: 821584 | E47: RACE NOVA Pants Men | F47: BKDY | G47: 1036.59 | H47: 1275.0057 | X47: 0 | Y47: 1700 | Z47: 1036.59 | AA47: 1275.0057 | AB47: 0 | AH47: #ART | AI47: #MATKZ | AN47: #DIM-BKDY42 | AO47: #DIM-BKDY44 | AP47: #DIM-BKDY46 | AQ47: #DIM-BKDY48 | AR47: #DIM-BKDY50 | AS47: #DIM-BKDY52 | AT47: #DIM-BKDY54 | AU47: #DIM-BKDY56 | AV47: #DIM-BKDY58 | BC47: #POSMENGE | BE47: #PREIS-1036.59 | BG47: #POSWERT | BH47: #BEMERKUNG
B48: N:69.1|69 | C48: 821584 | E48: RACE NOVA Pants Men | F48: BKWH | G48: 1036.59 | H48: 1275.0057 | X48: 0 | Y48: 1700 | Z48: 1036.59 | AA48: 1275.0057 | AB48: 0 | AH48: #ART | AI48: #MATKZ | AN48: #DIM-BKWH42 | AO48: #DIM-BKWH44 | AP48: #DIM-BKWH46 | AQ48: #DIM-BKWH48 | AR48: #DIM-BKWH50 | AS48: #DIM-BKWH52 | AT48: #DIM-BKWH54 | AU48: #DIM-BKWH56 | AV48: #DIM-BKWH58 | BC48: #POSMENGE | BE48: #PREIS-1036.59 | BG48: #POSWERT | BH48: #BEMERKUNG
B49: N:69.1|69 | C49: 821924 | E49: STAR Jacket Men | F49: BK | G49: 897.56 | H49: 1103.9988 | X49: 0 | Y49: 1600 | Z49: 897.56 | AA49: 1103.9988 | AB49: 0 | AH49: #ART | AI49: #MATKZ | AP49: #DIM-BK 46 | AQ49: #DIM-BK 48 | AR49: #DIM-BK 50 | AS49: #DIM-BK 52 | AT49: #DIM-BK 54 | AU49: #DIM-BK 56 | AV49: #DIM-BK 58 | BC49: #POSMENGE | BE49: #PREIS-897.56 | BG49: #POSWERT | BH49: #BEMERKUNG
B50: N:69.1|69 | C50: 821924 | E50: STAR Jacket Men | F50: BL | G50: 897.56 | H50: 1103.9988 | X50: 0 | Y50: 1600 | Z50: 897.56 | AA50: 1103.9988 | AB50: 0 | AH50: #ART | AI50: #MATKZ | AP50: #DIM-BL 46 | AQ50: #DIM-BL 48 | AR50: #DIM-BL 50 | AS50: #DIM-BL 52 | AT50: #DIM-BL 54 | AU50: #DIM-BL 56 | AV50: #DIM-BL 58 | BC50: #POSMENGE | BE50: #PREIS-897.56 | BG50: #POSWERT | BH50: #BEMERKUNG
B51: N:69.1|69 | C51: 821924 | E51: STAR Jacket Men | F51: DY | G51: 897.56 | H51: 1103.9988 | X51: 0 | Y51: 1600 | Z51: 897.56 | AA51: 1103.9988 | AB51: 0 | AH51: #ART | AI51: #MATKZ | AQ51: #DIM-DY 48 | AR51: #DIM-DY 50 | AS51: #DIM-DY 52 | AT51: #DIM-DY 54 | BC51: #POSMENGE | BE51: #PREIS-897.56 | BG51: #POSWERT | BH51: #BEMERKUNG
B52: N:69.1|69 | C52: 821572 | E52: REBELS STAR Coat Men | F52: BK | G52: 1158.54 | H52: 1425.0042 | X52: 0 | Y52: 1900 | Z52: 1158.54 | AA52: 1425.0042 | AB52: 0 | AH52: #ART | AI52: #MATKZ | AW52: #DIM-BK S | AX52: #DIM-BK M | AY52: #DIM-BK M/L | AZ52: #DIM-BK L | BA52: #DIM-BK XL | BB52: #DIM-BK XXL | BC52: #POSMENGE | BE52: #PREIS-1158.54 | BG52: #POSWERT | BH52: #BEMERKUNG
B53: N:69.1|69 | C53: 821572 | E53: REBELS STAR Coat Men | F53: TY | G53: 1158.54 | H53: 1425.0042 | X53: 0 | Y53: 1900 | Z53: 1158.54 | AA53: 1425.0042 | AB53: 0 | AH53: #ART | AI53: #MATKZ | AW53: #DIM-TY S | AX53: #DIM-TY M | AY53: #DIM-TY M/L | AZ53: #DIM-TY L | BA53: #DIM-TY XL | BB53: #DIM-TY XXL | BC53: #POSMENGE | BE53: #PREIS-1158.54 | BG53: #POSWERT | BH53: #BEMERKUNG
B54: N:69.1|69 | C54: 821543 | E54: RACE STAR Vest Men | F54: YVBK | G54: 524.39 | H54: 644.9997 | X54: 0 | Y54: 860 | Z54: 524.39 | AA54: 644.9997 | AB54: 0 | AH54: #ART | AI54: #MATKZ | AW54: #DIM-YVBKS | AX54: #DIM-YVBKM | AY54: #DIM-YVBKM/L | AZ54: #DIM-YVBKL | BA54: #DIM-YVBKXL | BB54: #DIM-YVBKXXL | BC54: #POSMENGE | BE54: #PREIS-524.39 | BG54: #POSWERT | BH54: #BEMERKUNG
B55: N:69.1|69 | C55: 821604 | E55: RACE KINETIC Jacket Men | F55: BK | G55: 560.98 | H55: 690.0054 | X55: 0 | Y55: 920 | Z55: 560.98 | AA55: 690.0054 | AB55: 0 | AH55: #ART | AI55: #MATKZ | AP55: #DIM-BK 46 | AQ55: #DIM-BK 48 | AR55: #DIM-BK 50 | AS55: #DIM-BK 52 | AT55: #DIM-BK 54 | AU55: #DIM-BK 56 | AV55: #DIM-BK 58 | BC55: #POSMENGE | BE55: #PREIS-560.98 | BG55: #POSWERT | BH55: #BEMERKUNG
B56: N:69.1|69 | C56: 821604 | E56: RACE KINETIC Jacket Men | F56: BLWH | G56: 560.98 | H56: 690.0054 | X56: 0 | Y56: 920 | Z56: 560.98 | AA56: 690.0054 | AB56: 0 | AH56: #ART | AI56: #MATKZ | AP56: #DIM-BLWH46 | AQ56: #DIM-BLWH48 | AR56: #DIM-BLWH50 | AS56: #DIM-BLWH52 | AT56: #DIM-BLWH54 | AU56: #DIM-BLWH56 | AV56: #DIM-BLWH58 | BC56: #POSMENGE | BE56: #PREIS-560.98 | BG56: #POSWERT | BH56: #BEMERKUNG
B57: N:69.1|69 | C57: 821664 | E57: RACE T-Shirt Men | F57: BK | G57: 121.95 | H57: 149.9985 | X57: 0 | Y57: 200 | Z57: 121.95 | AA57: 149.9985 | AB57: 0 | AH57: #ART | AI57: #MATKZ | AP57: #DIM-BK 46 | AQ57: #DIM-BK 48 | AR57: #DIM-BK 50 | AS57: #DIM-BK 52 | AT57: #DIM-BK 54 | AU57: #DIM-BK 56 | AV57: #DIM-BK 58 | BC57: #POSMENGE | BE57: #PREIS-121.95 | BG57: #POSWERT | BH57: #BEMERKUNG
B58: N:69.1|69 | C58: 811913 | E58: FLEX Seamless LS Men | F58: BK | G58: 159.35 | H58: 196.0005 | X58: 0 | Y58: 280 | Z58: 159.35 | AA58: 196.0005 | AB58: 0 | AH58: #ART | AI58: #MATKZ | AX58: #DIM-BK M | AZ58: #DIM-BK L | BA58: #DIM-BK XL | BC58: #POSMENGE | BE58: #PREIS-159.35 | BG58: #POSWERT | BH58: #BEMERKUNG
B59: N:69.1|69 | C59: 811913 | E59: FLEX Seamless LS Men | F59: NV | G59: 159.35 | H59: 196.0005 | X59: 0 | Y59: 280 | Z59: 159.35 | AA59: 196.0005 | AB59: 0 | AH59: #ART | AI59: #MATKZ | AX59: #DIM-NV M | AZ59: #DIM-NV L | BA59: #DIM-NV XL | BC59: #POSMENGE | BE59: #PREIS-159.35 | BG59: #POSWERT | BH59: #BEMERKUNG
B60: N:69.1|69 | C60: 811913 | E60: FLEX Seamless LS Men | F60: WH | G60: 159.35 | H60: 196.0005 | X60: 0 | Y60: 280 | Z60: 159.35 | AA60: 196.0005 | AB60: 0 | AH60: #ART | AI60: #MATKZ | AX60: #DIM-WH M | AZ60: #DIM-WH L | BA60: #DIM-WH XL | BC60: #POSMENGE | BE60: #PREIS-159.35 | BG60: #POSWERT | BH60: #BEMERKUNG
B61: N:69.1|69 | C61: 821672 | E61: PROMO HEAD Vest Men | F61: BK | G61: 420.73 | H61: 517.4979 | X61: 0 | Y61: 690 | Z61: 420.73 | AA61: 517.4979 | AB61: 0 | AH61: #ART | AI61: #MATKZ | AW61: #DIM-BK S | AX61: #DIM-BK M | AZ61: #DIM-BK L | BA61: #DIM-BK XL | BB61: #DIM-BK XXL | BC61: #POSMENGE | BE61: #PREIS-420.73 | BG61: #POSWERT | BH61: #BEMERKUNG
A62: GH | B62: N:70| | C62: WOMEN
A63: H | B63: N:70.1|70 | C63: Kod Art. | E63: Model | F63: Kolor | G63: Cena Racing Netto | H63: Cena Racing Brutto | I63: 34 | J63: 36 | K63: 38 | L63: 40 | M63: 42 | N63: 44 | O63: 46 | P63: XS | Q63: S | R63: S/M | S63: M | T63: L | U63: XL | V63: XXL | X63: Ilość | Y63: Rekomend. Cena Detaliczna | Z63: NET-Price | AA63: Price incl. VAT | AB63: Wartość | AC63: Uwagi
B64: N:70.1|70 | C64: 824563 | E64: RACE STAR Jacket Women | F64: BK | G64: 897.56 | H64: =G64 * 1.23 -> 1103.9988 | X64: =(SUM(I64:W64)) -> 0 | Y64: 1600 | Z64: =AA64 / 1.23 -> 897.56 | AA64: =H64 * (1-WS_DISCOUNT) -> 1103.9988 | AB64: =((SUM(I64:W64)) * AA64) -> 0 | AH64: #ART | AI64: #MATKZ | AU64: #DIM-BK XS | AV64: #DIM-BK S | AW64: #DIM-BK S/M | AX64: #DIM-BK M | AY64: #DIM-BK L | AZ64: #DIM-BK XL | BA64: #DIM-BK XXL | BC64: #POSMENGE | BE64: #PREIS-897.56 | BG64: #POSWERT | BH64: #BEMERKUNG
B65: N:70.1|70 | C65: 824563 | E65: RACE STAR Jacket Women | F65: BL | G65: 897.56 | H65: 1103.9988 | X65: 0 | Y65: 1600 | Z65: 897.56 | AA65: 1103.9988 | AB65: 0 | AH65: #ART | AI65: #MATKZ | AU65: #DIM-BL XS | AV65: #DIM-BL S | AW65: #DIM-BL S/M | AX65: #DIM-BL M | AY65: #DIM-BL L | AZ65: #DIM-BL XL | BA65: #DIM-BL XXL | BC65: #POSMENGE | BE65: #PREIS-897.56 | BG65: #POSWERT | BH65: #BEMERKUNG
B66: N:70.1|70 | C66: 824642 | E66: REBELS STAR Coat Women | F66: BK | G66: 1158.54 | H66: 1425.0042 | X66: 0 | Y66: 1900 | Z66: 1158.54 | AA66: 1425.0042 | AB66: 0 | AH66: #ART | AI66: #MATKZ | AU66: #DIM-BK XS | AV66: #DIM-BK S | AW66: #DIM-BK S/M | AX66: #DIM-BK M | AY66: #DIM-BK L | AZ66: #DIM-BK XL | BA66: #DIM-BK XXL | BC66: #POSMENGE | BE66: #PREIS-1158.54 | BG66: #POSWERT | BH66: #BEMERKUNG
B67: N:70.1|70 | C67: 824642 | E67: REBELS STAR Coat Women | F67: TY | G67: 1158.54 | H67: 1425.0042 | X67: 0 | Y67: 1900 | Z67: 1158.54 | AA67: 1425.0042 | AB67: 0 | AH67: #ART | AI67: #MATKZ | AU67: #DIM-TY XS | AV67: #DIM-TY S | AW67: #DIM-TY S/M | AX67: #DIM-TY M | AY67: #DIM-TY L | AZ67: #DIM-TY XL | BA67: #DIM-TY XXL | BC67: #POSMENGE | BE67: #PREIS-1158.54 | BG67: #POSWERT | BH67: #BEMERKUNG
B68: N:70.1|70 | C68: 824492 | E68: RACE KINETIC Jacket Women | F68: BK | G68: 560.98 | H68: 690.0054 | X68: 0 | Y68: 920 | Z68: 560.98 | AA68: 690.0054 | AB68: 0 | AH68: #ART | AI68: #MATKZ | AU68: #DIM-BK XS | AV68: #DIM-BK S | AW68: #DIM-BK S/M | AX68: #DIM-BK M | AY68: #DIM-BK L | AZ68: #DIM-BK XL | BA68: #DIM-BK XXL | BC68: #POSMENGE | BE68: #PREIS-560.98 | BG68: #POSWERT | BH68: #BEMERKUNG
B69: N:70.1|70 | C69: 814913 | E69: FLEX Seamless LS Women | F69: BK | G69: 159.35 | H69: 196.0005 | X69: 0 | Y69: 280 | Z69: 159.35 | AA69: 196.0005 | AB69: 0 | AH69: #ART | AI69: #MATKZ | AV69: #DIM-BK S | AX69: #DIM-BK M | AY69: #DIM-BK L | BC69: #POSMENGE | BE69: #PREIS-159.35 | BG69: #POSWERT | BH69: #BEMERKUNG
B70: N:70.1|70 | C70: 814913 | E70: FLEX Seamless LS Women | F70: NV | G70: 159.35 | H70: 196.0005 | X70: 0 | Y70: 280 | Z70: 159.35 | AA70: 196.0005 | AB70: 0 | AH70: #ART | AI70: #MATKZ | AV70: #DIM-NV S | AX70: #DIM-NV M | AY70: #DIM-NV L | BC70: #POSMENGE | BE70: #PREIS-159.35 | BG70: #POSWERT | BH70: #BEMERKUNG
B71: N:70.1|70 | C71: 814913 | E71: FLEX Seamless LS Women | F71: WH | G71: 159.35 | H71: 196.0005 | X71: 0 | Y71: 280 | Z71: 159.35 | AA71: 196.0005 | AB71: 0 | AH71: #ART | AI71: #MATKZ | AV71: #DIM-WH S | AX71: #DIM-WH M | AY71: #DIM-WH L | BC71: #POSMENGE | BE71: #PREIS-159.35 | BG71: #POSWERT | BH71: #BEMERKUNG
B72: N:70.1|70 | C72: 824544 | E72: WCR T-Shirt Women | F72: BL | G72: 121.95 | H72: 149.9985 | X72: 0 | Y72: 200 | Z72: 121.95 | AA72: 149.9985 | AB72: 0 | AH72: #ART | AI72: #MATKZ | AN72: #DIM-BL 34 | AO72: #DIM-BL 36 | AP72: #DIM-BL 38 | AQ72: #DIM-BL 40 | AR72: #DIM-BL 42 | AS72: #DIM-BL 44 | AT72: #DIM-BL 46 | BC72: #POSMENGE | BE72: #PREIS-121.95 | BG72: #POSWERT | BH72: #BEMERKUNG
A73: GH | B73: N:59| | C73: JUNIOR
A74: H | B74: N:59.1|59 | C74: Kod Art. | E74: Model | F74: Kolor | G74: Cena Racing Netto | H74: Cena Racing Brutto | I74: 128 | J74: 140 | K74: 152 | L74: 164 | M74: 176 | X74: Ilość | Y74: Rekomend. Cena Detaliczna | Z74: NET-Price | AA74: Price incl. VAT | AB74: Wartość | AC74: Uwagi
B75: N:59.1|59 | C75: 826504 | E75: RACE Suit Junior | F75: YVBK | G75: 1128.05 | H75: =G75 * 1.23 -> 1387.5015 | X75: =(SUM(I75:W75)) -> 0 | Y75: 1850 | Z75: =AA75 / 1.23 -> 1128.05 | AA75: =H75 * (1-WS_DISCOUNT) -> 1387.5015 | AB75: =((SUM(I75:W75)) * AA75) -> 0 | AH75: #ART | AI75: #MATKZ | AN75: #DIM-YVBK128 | AO75: #DIM-YVBK140 | AP75: #DIM-YVBK152 | AQ75: #DIM-YVBK164 | AR75: #DIM-YVBK176 | BC75: #POSMENGE | BE75: #PREIS-1128.05 | BG75: #POSWERT | BH75: #BEMERKUNG
B76: N:59.1|59 | C76: 826032 | E76: RACE SOFTSHELL Jacket Junior | F76: BK | G76: 493.9 | H76: 607.497 | X76: 0 | Y76: 810 | Z76: 493.9 | AA76: 607.497 | AB76: 0 | AH76: #ART | AI76: #MATKZ | AN76: #DIM-BK 128 | AO76: #DIM-BK 140 | AP76: #DIM-BK 152 | AQ76: #DIM-BK 164 | AR76: #DIM-BK 176 | BC76: #POSMENGE | BE76: #PREIS-493.9 | BG76: #POSWERT | BH76: #BEMERKUNG
B77: N:59.1|59 | C77: 826524 | E77: RACE Shorts Junior | F77: BK | G77: 390.24 | H77: 479.9952 | X77: 0 | Y77: 640 | Z77: 390.24 | AA77: 479.9952 | AB77: 0 | AH77: #ART | AI77: #MATKZ | AN77: #DIM-BK 128 | AO77: #DIM-BK 140 | AP77: #DIM-BK 152 | AQ77: #DIM-BK 164 | AR77: #DIM-BK 176 | BC77: #POSMENGE | BE77: #PREIS-390.24 | BG77: #POSWERT | BH77: #BEMERKUNG
B78: N:59.1|59 | C78: 826514 | E78: RACE Rain Coat Junior | F78: BK | G78: 560.98 | H78: 690.0054 | X78: 0 | Y78: 920 | Z78: 560.98 | AA78: 690.0054 | AB78: 0 | AH78: #ART | AI78: #MATKZ | AN78: #DIM-BK 128 | AO78: #DIM-BK 140 | AP78: #DIM-BK 152 | AQ78: #DIM-BK 164 | AR78: #DIM-BK 176 | BC78: #POSMENGE | BE78: #PREIS-560.98 | BG78: #POSWERT | BH78: #BEMERKUNG
B79: N:59.1|59 | C79: 826514 | E79: RACE Rain Coat Junior | F79: BL | G79: 560.98 | H79: 690.0054 | X79: 0 | Y79: 920 | Z79: 560.98 | AA79: 690.0054 | AB79: 0 | AH79: #ART | AI79: #MATKZ | AN79: #DIM-BL 128 | AO79: #DIM-BL 140 | AP79: #DIM-BL 152 | AQ79: #DIM-BL 164 | AR79: #DIM-BL 176 | BC79: #POSMENGE | BE79: #PREIS-560.98 | BG79: #POSWERT | BH79: #BEMERKUNG
B80: N:59.1|59 | C80: 826042 | E80: RACE KINETIC Jacket Junior | F80: BK | G80: 530.49 | H80: 652.5027 | X80: 0 | Y80: 870 | Z80: 530.49 | AA80: 652.5027 | AB80: 0 | AH80: #ART | AI80: #MATKZ | AN80: #DIM-BK 128 | AO80: #DIM-BK 140 | AP80: #DIM-BK 152 | AQ80: #DIM-BK 164 | AR80: #DIM-BK 176 | BC80: #POSMENGE | BE80: #PREIS-530.49 | BG80: #POSWERT | BH80: #BEMERKUNG
B81: N:59.1|59 | C81: 826042 | E81: RACE KINETIC Jacket Junior | F81: BLWH | G81: 530.49 | H81: 652.5027 | X81: 0 | Y81: 870 | Z81: 530.49 | AA81: 652.5027 | AB81: 0 | AH81: #ART | AI81: #MATKZ | AN81: #DIM-BLWH128 | AO81: #DIM-BLWH140 | AP81: #DIM-BLWH152 | AQ81: #DIM-BLWH164 | AR81: #DIM-BLWH176 | BC81: #POSMENGE | BE81: #PREIS-530.49 | BG81: #POSWERT | BH81: #BEMERKUNG
B82: N:59.1|59 | C82: 826554 | E82: RACE Hoodie Junior | F82: BK | G82: 195.12 | H82: 239.9976 | X82: 0 | Y82: 320 | Z82: 195.12 | AA82: 239.9976 | AB82: 0 | AH82: #ART | AI82: #MATKZ | AN82: #DIM-BK 128 | AO82: #DIM-BK 140 | AP82: #DIM-BK 152 | AQ82: #DIM-BK 164 | AR82: #DIM-BK 176 | BC82: #POSMENGE | BE82: #PREIS-195.12 | BG82: #POSWERT | BH82: #BEMERKUNG
B83: N:59.1|59 | C83: 826554 | E83: RACE Hoodie Junior | F83: BL | G83: 195.12 | H83: 239.9976 | X83: 0 | Y83: 320 | Z83: 195.12 | AA83: 239.9976 | AB83: 0 | AH83: #ART | AI83: #MATKZ | AN83: #DIM-BL 128 | AO83: #DIM-BL 140 | AP83: #DIM-BL 152 | AQ83: #DIM-BL 164 | AR83: #DIM-BL 176 | BC83: #POSMENGE | BE83: #PREIS-195.12 | BG83: #POSWERT | BH83: #BEMERKUNG
B84: N:59.1|59 | C84: 826554 | E84: RACE Hoodie Junior | F84: WH | G84: 195.12 | H84: 239.9976 | X84: 0 | Y84: 320 | Z84: 195.12 | AA84: 239.9976 | AB84: 0 | AH84: #ART | AI84: #MATKZ | AN84: #DIM-WH 128 | AO84: #DIM-WH 140 | AP84: #DIM-WH 152 | AQ84: #DIM-WH 164 | AR84: #DIM-WH 176 | BC84: #POSMENGE | BE84: #PREIS-195.12 | BG84: #POSWERT | BH84: #BEMERKUNG

Sheet Definition (hidden)
B1: #TEMPLATE
A2: Order Form Definition
B3: Development Mode | F3: Productive Mode
A5: Fields for Data Transfer: | F5: Header Fields: | I5: Content Fields:
G6: Color (Width)
A7: Material Number | B7: 230036 | F7: Material Number | G7: 9 | I7: Material Number | J7: 230036
A9: QTTY Field (Dimension) | B9: S10 | F9: QTTY Field (Dimension) | G9: 4 | I9: Active QTTY Field (Dimension) | J9: S10 | L9: Inactive QTTY Field (Dimension)
A11: Price Field | B11: 123 | F11: Price Field | G11: 8 | I11: Price Field | J11: 123
A13: Item-QTTY | B13: 123 | F13: Material Description | G13: 40 | I13: Material Description | J13: Test | L13: Material Descr. *** no binding *** | M13: Test
A15: Item-Amount | B15: 123 | F15: Price 1 | G15: 8 | I15: Price 1 | J15: 123
A17: Delivery Date Quantity | B17: 123 | F17: Price 2 | G17: 8 | I17: Price 2 | J17: 123
A19: Delivery Date Amount | B19: 123 | F19: Vertical Grid | G19: 10 | I19: Vertical Grid | J19: Test
F21: Item-QTTY | G21: 8 | I21: Item-QTTY | J21: 123
F23: Item-Amount | G23: 11 | I23: Item-Amount | J23: 123.45
F25: Delivery Date Quantity | G25: 8 | I25: Delivery Date Quantity | J25: 123
F27: Delivery Date Amount | G27: 11 | I27: Delivery Date Amount | J27: 123.45
A29: Material-KZ | B29: Test | F29: Material-KZ | G29: 3 | I29: Material-KZ | J29: Test
F31: Attribute short | G31: 8 | I31: Attribute short | J31: Test
F33: Attribute long | G33: 20 | I33: Attribute long | J33: Test
F35: Attribute 4 | G35: 4 | I35: Attribute 4 | J35: Test
F37: Netscale on Item level | G37: 8 | I37: Netscale on Item level | J37: Test
F39: Discount on Item Level | G39: 6 | I39: Discount on Item Level | J39: 0.01
A41: NetScale / Nettostaffel | B41: 123 | I41: NetScale / Nettostaffel | J41: 1
A43: Unit of Measure | B43: Test | F43: Unit of Measure | G43: 5 | I43: Unit of Measure | J43: Test
A45: Price Indicator | B45: Test | F45: Price Indicator | G45: 3 | I45: Price Indicator | J45: Test
A47: Remarks | B47: Test | F47: Remarks | G47: 20 | I47: Remarks | J47: Test
A49: Common input field | B49: Test | F49: Common input field | G49: 8 | I49: Common input field | J49: Test
F52: Special Format Definions:
F54: Group Header | G54: Test | H54: Test | I54: Test
F56: Text-Line | G56: Test
F58: Left Border Line for first column of each Delivery Date
F60: Ausgeblendete Spalte | G60: 0
F62: Summen-Menge | G62: 123.45 | I62: (Farbe ist nicht relevant)
F64: Summen-Wert | G64: 123.45 | I64: (Farbe ist nicht relevant)
A66: Globale Parameters (Names):
A68: # of Admin-Spalten: | B68: 2
A69: First DelDate Row: | B69: 10
A70: # of Delivery Dates | B70: 1
A71: # of Summary DelDates | B71: 1
A72: Checkbox Delivery Date 1 - Visible | C72: "X"=Yes / " " = No
A73: Checkbox Delivery Date 2 - Visible | C73: "X"=Yes / " " = No
A74: Checkbox Delivery Date 3 - Visible | C74: "X"=Yes / " " = No
A75: Checkbox Delivery Date 4 - Visible | C75: "X"=Yes / " " = No
A76: Checkbox DeliveryvDate Totals - Visible | C76: "X"=Yes / " " = No
A77: Checkbox Delivery Date Totals - Default | B77: X | C77: "X"=Checked / " "=Unchecked
A78: Worksheet Discount/NetScale Name: | B78: Zniżka | C78: For product line header on summary sheet
A79: Worksheet NetScale (Nettostaffel): | C79: "X"=Yes / " " = No
A80: Worksheet Discount: | B80: X | C80: "X"=Yes / " " = No
A81: Remove hidden sheets from Summary: | B81: X | C81: "X"=Yes / " " = No | F81: Dialog text: | G81: Remove hidden sheets from Summary (if empty)
A82: Password for Sheet Administration | C82: (optional)
A83: Hide repeated article no and description | B83: X | C83: "X"=Yes / " " = No
A85: Checkbox Delivery Empty Lines - Linked Cell | B85: $B$4 | C85: These definitions are required because the linked cell cannot be determied on MacOS
A86: Checkbox Delivery Date Total - Linked Cell | B86: $B$5
A87: Checkbox Delivery Date 1 - Linked Cell | B87: $B$6
A88: Checkbox Delivery Date 2 - Linked Cell | B88: $B$7
A89: Checkbox Delivery Date 3 - Linked Cell | B89: $B$8
A90: Checkbox Delivery Date 4 - Linked Cell | B90: $B$9
A92: Material-Number Column | B92: 3
A93: Material-KZ Column | B93: 4
A94: Material-Text Column | B94: 5
A96: Additional text for sheet title | B96: -kod prod. to link do zdjęcia!
A97: Text - Switch to DEV Message | B97: Switch to DEV-Mode? All quantity input data will be deleted!!!
A98: Text - Context Menu - Copy Article Line | B98: Copy Artikel Line
A99: Text - Context Menu - Column Width | B99: Column Width
A101: Header CustomerAddress Selection | B101: Customer address selection
A102: Header Delivery Address Selection | B102: Delivery address selection
A103: Header Invoice Address Selection | B103: Invoice address selection
A104: Header Sales-Rep Address Selection | B104: Sales-rep. address selection
A106: Delivery Date 1 - ID
A107: Delivery Date 2 - ID
A108: Delivery Date 3 - ID
A109: Delivery Date 4 - ID
A110: Delivery Date 5 - ID
A111: Delivery Date 6 - ID
A113: Pricelist filename (filled during creation)
A114: No Summary Update | C114: "X"=Yes / " " = No
A115: WS_Netscale Listbox füllen | C115: "X"=Yes / " " = No
A117: SAP Parameters (Names):
A118: SAP-Applikations-Server | B118: 62.184.167.132|62.184.167.132|62.184.167.134
A119: SAP-System ID | B119: DEV … Development-System|TST … Test-System|*PRD … Productive-System | I119: * … Marker for Default System
A120: SAP-System No | B120: 10|01|10
A121: SAP-Client | B121: 021
A122: SAP-User | C122: (optional)
A123: SAP-Language | B123: EN
A124: Order Import Queue (max. 15 digits) | B124: PL-ORDERS
A125: Message für missing Key | B125: Please enter CUSTOMER-NO., ORDER-NO. and ORDER DATE first
A127: Important Information:
A129: If cells are linked to checkboxes, these cells may not be locked, otherwise an error message appears if the checkbox state is changed.
A132: List Definitions: | B132: Field | C132: Default Lock Status | D132: Description for unlock dialog
A133: #LOCK | B133: F_SALES_REP | C133: X | D133: Sales Rep:
A134: #LOCK | B134: CB_SALESREP | C134: X | D134: Button Sales Rep selection:
A135: #LOCK | B135: F_CUST_NO | C135: X | D135: Customer no:
A136: #LOCK | B136: F_CUST_NAME | D136: Customer name:
A137: #LOCK | B137: F_CUST_ADDR | D137: Customer addr:
A138: #LOCK | B138: CB_CUSTOMER | C138: X | D138: Button Customer selection:
A139: #LOCK | B139: F_DELIV_ADDR_NO | D139: Delivery address no:
A140: #LOCK | B140: F_DELIV_NAME | D140: Delivery name:
A141: #LOCK | B141: F_DELIV_ADDR | D141: Delivery address:
A142: #LOCK | B142: CB_DELIV_ADDR | C142: X | D142: Button Delivery address selection:
A143: #LOCK | B143: CB_CUST_PREPARE | C143: X | D143: Prepare for Customer:
A144: #LOCK | B144: WS_NETPRICE | C144: X | D144: Netprice fields on data sheets
A145: #LOCK | B145: WS_INPUT | C145: X | D145: SET-Netprice fields on data sheets
A146: #LOCK | B146: WS_DISCOUNT | C146: X | D146: Discount on data sheets
A148: #REQ-PREP-CUST | B148: F_SALES_REP | C148: Please enter "Sales Rep first"
A149: #REQ-PREP-CUST | B149: F_CUST_NO | C149: Please enter "Customer No"
A150: #REQ-PREP-CUST | B150: F_EMAIL_REP | C150: Please enter "Sales Rep Email" first
A151: #REQ-PREP-CUST | B151: F_ORDER_REASON | C151: Please select "Order Reason and Customer Grp" first
A152: #REQ-PREP-CUST | B152: F_CUST_GROUP | C152: Please select "Order Reason and Customer Grp" first
A154: #SALES-REP-MODE | B154: F_DELIV_ADDR_NO | D154: Delivery address no:
A155: #SALES-REP-MODE | B155: F_CUST_NO | C155: X | D155: Customer no:
A156: #SALES-REP-MODE | B156: F_CUST_NAME | C156: X | D156: Customer name:
A157: #SALES-REP-MODE | B157: F_CUST_ADDR | C157: X | D157: Customer addr:
A158: #SALES-REP-MODE | B158: CB_CUSTOMER | C158: X | D158: Button Customer selection:
A159: #SALES-REP-MODE | B159: F_DELIV_NAME | D159: Delivery name:
A160: #SALES-REP-MODE | B160: F_DELIV_ADDR | D160: Delivery address:
A161: #SALES-REP-MODE | B161: CB_DELIV_ADDR | D161: Button Delivery address selection:
A162: #SALES-REP-MODE | B162: CB_CUST_PREPARE | C162: X | D162: Prepare for Customer:
A163: #SALES-REP-MODE | B163: WS_NETPRICE | C163: X | D163: Netprice Fields on data sheets
A164: #SALES-REP-MODE | B164: WS_DISCOUNT | C164: X | D164: Discount on data sheets

Sheet PriceTable (hidden)
A1: Matnr | B1: MatKZ | C1: V-Grid | D1: Price-Basis

Sheet Template (hidden)
A1: #DEV | B1: #TEMPLATE
A2: =SUM(A10:A12) -> 0 | B2: =SUM(B10:B12) -> 0
A3: B3 has to be empty!!! | C3: Nr klienta | D3: =IF(F_CUST_NO="","",F_CUST_NO) -> NEW | G3: Nr zamówienia | I3: =IF(F_ORDER_NO="","",F_ORDER_NO) -> PRE RACE 24/25 | P3: Data zamówienia | T3: =IF(F_ORDER_DATE<> "",F_ORDER_DATE,"") -> 
A4: Empty Lines: | B4: TRUE | C4: Nazwa firmy | D4: =IF(F_CUST_NAME="","",F_CUST_NAME) ->  | G4: Sales Rep. | I4: =IF(F_SALES_REP="","",F_SALES_REP) -> 2694000|Sales Rep / Poland | P4: Data dostawy | T4: =IF(F_DELDATE1<> "",F_DELDATE1,"") -> 
A5: Delivery Date Total: | B5: TRUE | C5: Adres | D5: =IF(F_CUST_ADDR="","",F_CUST_ADDR) ->  | T5: =IF(F_DELDATE2<> "",F_DELDATE2,"") -> 
A6: Delivery Date 1: | B6: TRUE | G6: Zniżka | T6: =IF(F_DELDATE3<> "",F_DELDATE3,"") -> 
A7: Delivery Date 2: | B7: TRUE
A8: Delivery Date 3: | B8: TRUE
C9: HEAD Sport GmbH - Wuhrkopfweg 1
A10: Reserved DD1-QTTY | B10: DD1-Amount | C10: Wuhrkopfweg 1 - A 6921 Kennelbach Austria | F10: =_xlnm.Sheet_Title() -> 
A11: Reserved DD2-QTTY | B11: DD2-Amount | C11: FN 64824 f
A12: Reserved DD3-QTTY | B12: DD3-Amount
A13: Reserved DD4-QTTY | B13: DD4-Amount
A14: Reserved DD5-QTTY | B14: DD5-Amount
A15: Reserved DD6-QTTY | B15: DD6-Amount

Sheet ColorTable (hidden)
B1: #TEMPLATE
A2: Sample | B2: FG-Color | C2: BG-Color
A3: Test | B3: 16777215 | C3: 255
A4: Test | B4: 16777215 | C4: 16711680
A5: Test | B5: 16777215 | C5: 16763904
A6: Test | B6: 16777215 | C6: 65280
A7: Test | B7: 16777215 | C7: 16711935
A8: Test | B8: 0 | C8: 65535
A9: Test | B9: 0 | C9: 39423
A10: Test | B10: 0 | C10: 12632256
A11: Test | B11: 16777215 | C11: 0
A12: Test | B12: 16777215 | C12: 32768

Sheet AddressList (hidden)
A1: Address No | B1: Partner Type | C1: Partner No | D1: xxxxxxxxx | E1: xxxxxxxxx | F1: SalesRep | G1: EMail | H1: Telnr | I1: UIDNR | J1: Add-Data | K1: Has-ShipTo | L1: AG-Is-ShipTo
A2: 26010597 | B2: AG | D2: xxxxxxxxx | E2: xxxxxxxxx | F2: 2694000,2694016, | G2: marcin@tandt.pl | H2: 602 559 201 | I2: PL8981394651 | K2: X | L2: X
A3: 26011321 | B3: AG | D3: xxxxxxxxx | E3: xxxxxxxxx | F3: 2694000,2694025, | G3: jacek.tyczy@gmail.com | H3: 604 077 851 | L3: X
A4: 26010854 | B4: AG | D4: xxxxxxxxx | E4: xxxxxxxxx | F4: 2694000,2694025, | G4: andrzej.chowaniec@interia.eu | H4: 664 082 207 | I4: PL7341063873 | L4: X
A5: 26010366 | B5: AG | D5: xxxxxxxxx | E5: xxxxxxxxx | F5: 2694000,2694016, | G5: kw@mpla.info | H5: 601 788 811 | I5: PL8970004474 | L5: X
A6: 26011834 | B6: AG | D6: xxxxxxxxx | E6: xxxxxxxxx | F6: 2694000,2694016, | G6: magdapl4@op.pl | H6: 695231410 | I6: PL9161286928 | L6: X
A7: 26010678 | B7: AG | D7: xxxxxxxxx | E7: xxxxxxxxx | F7: 2694000,2694025, | G7: allegro@time4tennis.pl | H7: 32 337 16 60 | I7: PL6310105110 | L7: X
A8: 26010697 | B8: AG | D8: xxxxxxxxx | E8: xxxxxxxxx | F8: 2694000,2694025, | G8: kkarolina128@gmail.com | H8: 514 843 168 | I8: PL5482219690 | L8: X
A9: 26010418 | B9: AG | D9: xxxxxxxxx | E9: xxxxxxxxx | F9: 2694000,2694025, | G9: sportissimo.konin@gmail.com | H9: 500285303 | I9: PL6652991072 | L9: X
A10: 26010496 | B10: AG | D10: xxxxxxxxx | E10: xxxxxxxxx | F10: 2694000,2694025, | G10: mandf@interia.pl | I10: PL8792537380 | L10: X
A11: 26011122 | B11: AG | D11: xxxxxxxxx | E11: xxxxxxxxx | F11: 2694000,2694025, | G11: strefasporturzeszow@gmail.com | I11: PL8130335163 | L11: X
A12: 26010763 | B12: AG | D12: xxxxxxxxx | E12: xxxxxxxxx | F12: 2694000,2694025, | G12: raszka976@gmail.com | H12: 502470710 | K12: X | L12: X
A13: 26010028 | B13: AG | D13: xxxxxxxxx | E13: xxxxxxxxx | F13: 2694000,2694016, | G13: bednarek.sport@gmail.com | H13: 502 045 508 | I13: PL6270000332 | K13: X | L13: X
A14: 26011952 | B14: AG | D14: xxxxxxxxx | E14: xxxxxxxxx | F14: 2694000,2694016, | G14: mateusz@2bsport.pl | H14: 507 701 313 | I14: PL6342752315 | L14: X
A15: 26011541 | B15: AG | D15: xxxxxxxxx | E15: xxxxxxxxx | F15: 2694000,2694016, | G15: serwis@2ski.pl | H15: 605655119 | L15: X
A16: 26010453 | B16: AG | D16: xxxxxxxxx | E16: xxxxxxxxx | F16: 2694000,2694025, | G16: tomek.2hills@gmail.com | H16: 600 402 903 | L16: X
A17: 26011903 | B17: AG | D17: xxxxxxxxx | E17: xxxxxxxxx | F17: 2694000,2694025, | G17: marcin@4tenn.com | H17: 505 446 077 | L17: X
A18: 26010702 | B18: AG | D18: xxxxxxxxx | E18: xxxxxxxxx | F18: 2694000,2694025, | G18: adam@tenisklub.pl | H18: 600 999 991 | I18: PL9512156862 | K18: X | L18: X
A19: 26011121 | B19: AG | D19: xxxxxxxxx | E19: xxxxxxxxx | F19: 2694000,2694025, | G19: sklep@4wsport.pl | H19: 575 300 059 | L19: X
A20: 26011697 | B20: AG | D20: xxxxxxxxx | E20: xxxxxxxxx | F20: 2694000,2694025, | G20: walekajacek@wp.pl | H20: 500 030 845 | L20: X
A21: 26010234 | B21: AG | D21: xxxxxxxxx | E21: xxxxxxxxx | F21: 2694000,2694025, | G21: czile@interia.pl | H21: 603682562 | K21: X | L21: X
A22: 26012116 | B22: AG | D22: xxxxxxxxx | E22: xxxxxxxxx | F22: 2694000,2694017, | G22: beniamin@abactive.pl | H22: 608400414 | I22: PL9512579290 | L22: X
A23: 26011355 | B23: AG | D23: xxxxxxxxx | E23: xxxxxxxxx | F23: 2694000,2694016, | G23: barto@bsn.com.pl | H23: 690 083 003 | L23: X
A24: 26010861 | B24: AG | D24: xxxxxxxxx | E24: xxxxxxxxx | F24: 2694000,2694017, | G24: info@abcsurf.pl | H24: 501550002 | I24: PL5832775174 | K24: X | L24: X
A25: 26011841 | B25: AG | D25: xxxxxxxxx | E25: xxxxxxxxx | F25: 2694000,2694016, | G25: wplaski@o2.pl | H25: 695551508 | L25: X
A26: 26011203 | B26: AG | D26: xxxxxxxxx | E26: xxxxxxxxx | F26: 2694000,2694025, | G26: dariusz.baldys@action.pl | H26: 509 877 484 | I26: PL5271107221 | L26: X
A27: 26011807 | B27: AG | D27: xxxxxxxxx | E27: xxxxxxxxx | F27: 2694000,2694016, | G27: acsportlab@gmail.com | H27: 664 141 389 | I27: PL5482730402 | L27: X
A28: 26010189 | B28: AG | D28: xxxxxxxxx | E28: xxxxxxxxx | F28: 2694000,2694016, | G28: info@familisport.pl | H28: 618757875 | I28: PL7830007650 | K28: X | L28: X
A29: 26010795 | B29: AG | D29: xxxxxxxxx | E29: xxxxxxxxx | F29: 2694000,2694017, | G29: jaroslaw.lach@aida-bialystok.pl | H29: 606 200051 | I29: PL5420303477 | L29: X
A30: 26010811 | B30: AG | D30: xxxxxxxxx | E30: xxxxxxxxx | F30: 2694000,2694016, | G30: monika@akademiapodrozy.pl | H30: 693255005 | I30: PL7422039459 | L30: X
A31: 26011562 | B31: AG | D31: xxxxxxxxx | E31: xxxxxxxxx | F31: 2694000,2694025, | G31: piotrek264@wp.pl | H31: 508 139 320 | L31: X
A32: 26010714 | B32: AG | D32: xxxxxxxxx | E32: xxxxxxxxx | F32: 2694000,2694016, | G32: warszawa@azs.pl | H32: 22 827 28 63 | L32: X
A33: 26012114 | B33: AG | D33: xxxxxxxxx | E33: xxxxxxxxx | F33: 2694000,2694025, | G33: olek.traczyk@gmail.com | H33: 511291909 | I33: PL8262209461 | L33: X
A34: 26010210 | B34: AG | D34: xxxxxxxxx | E34: xxxxxxxxx | F34: 2694000,2694025, | G34: marciniak@allforyou.pl | H34: 509050114 | I34: PL7831604833 | L34: X
A35: 26010438 | B35: AG | D35: xxxxxxxxx | E35: xxxxxxxxx | F35: 2694000,2694025, | G35: maciej.pietraszewski@wp.pl | H35: 601 839 339 | L35: X
A36: 26011266 | B36: AG | D36: xxxxxxxxx | E36: xxxxxxxxx | F36: 2694000,2694025, | G36: alltyres@op.pl | H36: 519-801-084 | I36: PL5661412104 | L36: X
A37: 26010844 | B37: AG | D37: xxxxxxxxx | E37: xxxxxxxxx | F37: 2694000,2694017, | G37: altsport@altsport.pl | H37: 609-733-899 | I37: PL5321345099 | K37: X | L37: X
A38: 26010776 | B38: AG | D38: xxxxxxxxx | E38: xxxxxxxxx | F38: 2694000,2694017, | G38: joanna@amazing.pl | H38: 607 041 741 | I38: PL5322053105 | K38: X | L38: X
A39: 26010397 | B39: AG | D39: xxxxxxxxx | E39: xxxxxxxxx | F39: 2694000,2694017, | G39: olzo@interia.pl | H39: 601-449-407 | I39: PL6762469388 | L39: X
A40: 26010300 | B40: AG | D40: xxxxxxxxx | E40: xxxxxxxxx | F40: 2694000,2694017, | G40: maciejcukier.ivbv@gmail.com | H40: 601150881 | I40: PL7361022995 | L40: X
A41: 26010634 | B41: AG | D41: xxxxxxxxx | E41: xxxxxxxxx | F41: 2694000,2694025, | G41: kontakt@magicsports.pl | H41: 48 694 107 073 | I41: PL6292143027 | L41: X
A42: 26010554 | B42: AG | D42: xxxxxxxxx | E42: xxxxxxxxx | F42: 2694000,2694016, | G42: paweltg5@gmail.com | H42: 792 281 549 | I42: PL7342542386 | L42: X
A43: 26011993 | B43: AG | D43: xxxxxxxxx | E43: xxxxxxxxx | F43: 2694000,2694016, | G43: frente68@op.pl | H43: 504102979 | I43: PL5482657303 | K43: X | L43: X
A44: 26010858 | B44: AG | D44: xxxxxxxxx | E44: xxxxxxxxx | F44: 2694000,2694016, | G44: aniakempys@gmail.com | H44: 697 593 483 | I44: PL7361592853 | L44: X
A45: 26011732 | B45: AG | D45: xxxxxxxxx | E45: xxxxxxxxx | F45: 2694000,2694050, | G45: phelinski@khelinska.com.pl | H45: 602 70 78 79 | L45: X
A46: 26011076 | B46: AG | D46: xxxxxxxxx | E46: xxxxxxxxx | F46: 2694000,2694025, | G46: darek@preisler.pl | H46: 661 487 485 | K46: X | L46: X
A47: 26010021 | B47: AG | D47: xxxxxxxxx | E47: xxxxxxxxx | F47: 2694000,2694017, | G47: g.betlej@vp.pl | H47: 602737012 | I47: PL8721949738 | L47: X
A48: 26011992 | B48: AG | D48: xxxxxxxxx | E48: xxxxxxxxx | F48: 2694000,2694016, | G48: biuro@strefazimy.pl | H48: 693 429 329 | I48: PL9372392857 | L48: X
A49: 26011123 | B49: AG | D49: xxxxxxxxx | E49: xxxxxxxxx | F49: 2694000,2694015, | G49: otruszkowska@astrapolska.pl | H49: +48 609 987 737 | I49: PL1070005693 | L49: X
A50: 26011522 | B50: AG | D50: xxxxxxxxx | E50: xxxxxxxxx | F50: 2694000,2694016, | G50: biuro.atacama@gmail.com | H50: 695 730 835 | I50: PL8942713543 | L50: X
A51: 26010306 | B51: AG | D51: xxxxxxxxx | E51: xxxxxxxxx | F51: 2694000,2694025, | G51: biuro@atppro.pl | H51: 692424470 | I51: PL7321842344 | K51: X | L51: X
A52: 26010876 | B52: AG | D52: xxxxxxxxx | E52: xxxxxxxxx | F52: 2694000,2694025, | G52: agnieszka.wajdemajer@gmail.com | H52: 501 615 244 | I52: PL1231039899 | K52: X | L52: X
A53: 26011406 | B53: AG | D53: xxxxxxxxx | E53: xxxxxxxxx | F53: 2694000,2694017, | G53: krzysztof.plewa@atklub.pl | H53: 660 411 532 | L53: X
A54: 26010701 | B54: AG | D54: xxxxxxxxx | E54: xxxxxxxxx | F54: 2694000,2694025, | G54: j.pszowska@gmail.com | H54: 604561430 | I54: PL7561754378 | L54: X
A55: 26011556 | B55: AG | D55: xxxxxxxxx | E55: xxxxxxxxx | F55: 2694000,2694017, | G55: sklep@nartyrowerykrakow.pl | H55: 693352237 | I55: PL6832096924 | K55: X | L55: X
A56: 26010043 | B56: AG | D56: xxxxxxxxx | E56: xxxxxxxxx | F56: 2694000,2694016, | G56: zaczyk@me.com | H56: 502288301 | I56: PL8831604259 | L56: X
A57: 26011597 | B57: AG | D57: xxxxxxxxx | E57: xxxxxxxxx | F57: 2694000,2694016, | G57: azs@awf.katowice.pl | H57: (32) 207 52 81 | I57: PL6341013320 | L57: X
A58: 26011172 | B58: AG | D58: xxxxxxxxx | E58: xxxxxxxxx | F58: 2694000,2694025, | G58: tomekiwanski@yahoo.com | H58: 601 177703 | L58: X
A59: 26010791 | B59: AG | D59: xxxxxxxxx | E59: xxxxxxxxx | F59: 2694000,2694025, | G59: firma@activ-sport.krakow.pl | H59: 601 471 814 | L59: X
A60: 26011907 | B60: AG | D60: xxxxxxxxx | E60: xxxxxxxxx | F60: 2694000,2694025, | G60: maciej.piecha@onet.pl | H60: 609264479 | L60: X
A61: 26012102 | B61: AG | D61: xxxxxxxxx | E61: xxxxxxxxx | F61: 2694000,2694016, | G61: dom@activetherapy.eu | H61: 794385081 | I61: PL8862519945 | L61: X
A62: 26011513 | B62: AG | D62: xxxxxxxxx | E62: xxxxxxxxx | F62: 2694000,2694017, | G62: active@woj-tom.pl | H62: 697006001 | I62: PL7343543465 | L62: X
A63: 26012026 | B63: AG | D63: xxxxxxxxx | E63: xxxxxxxxx | F63: 2694000,2694016, | G63: kontakt@activetime24.com | H63: 784 648 086 | K63: X | L63: X
A64: 26010928 | B64: AG | D64: xxxxxxxxx | E64: xxxxxxxxx | F64: 2694000,2694025, | G64: grabinski.ad@gmail.com | H64: 792022323 | L64: X
A65: 26010646 | B65: AG | D65: xxxxxxxxx | E65: xxxxxxxxx | F65: 2694000,2694050, | G65: Olgierd.Kwiatkowski69@gmail.com | H65: 602 795 882 | L65: X
A66: 26011735 | B66: AG | D66: xxxxxxxxx | E66: xxxxxxxxx | F66: 2694000,2694025, | G66: adampajestka@tlen.pl | H66: 509 685 880 | L66: X
A67: 26010632 | B67: AG | D67: xxxxxxxxx | E67: xxxxxxxxx | F67: 2694000,2694016, | G67: adventureelement@gmail.com | H67: 506-163-155 | L67: X
A68: 26011544 | B68: AG | D68: xxxxxxxxx | E68: xxxxxxxxx | F68: 2694000,2694050, | G68: gusia_2211@op.pl | H68: 502 117 892 | L68: X
A69: 26010474 | B69: AG | D69: xxxxxxxxx | E69: xxxxxxxxx | F69: 2694000,2694050, | G69: aga@bono.pl | H69: 663 171 640 | I69: PL8520604895 | L69: X
A70: 26010463 | B70: AG | D70: xxxxxxxxx | E70: xxxxxxxxx | F70: 2694000,2694016, | G70: info@dendysski.pl | H70: 791111047 | L70: X
A71: 26011059 | B71: AG | D71: xxxxxxxxx | E71: xxxxxxxxx | F71: 2694000,2694025, | G71: agnieszkarusin@o2.pl | H71: 608 323 290 | L71: X
A72: 26012094 | B72: AG | D72: xxxxxxxxx | E72: xxxxxxxxx | F72: 2694000,2694017, | G72: kochancz@agh.edu.pl | H72: 885 984 130 | I72: PL6750001923 | K72: X | L72: X
A73: 26010758 | B73: AG | D73: xxxxxxxxx | E73: xxxxxxxxx | F73: 2694000,2694017, | G73: asibil@poczta.onet.pl | H73: 605337173 | L73: X
A74: 26011333 | B74: AG | D74: xxxxxxxxx | E74: xxxxxxxxx | F74: 2694000,2694025, | G74: akademiatenisamm@gmail.com | H74: 603 846 856 | I74: PL5922170316 | K74: X | L74: X
A75: 26010439 | B75: AG | D75: xxxxxxxxx | E75: xxxxxxxxx | F75: 2694000,2694025, | G75: andmike@Interia.pl | H75: 608 108146 | L75: X
A76: 26010489 | B76: AG | D76: xxxxxxxxx | E76: xxxxxxxxx | F76: 2694000,2694025, | G76: raszka976@gmail.com | H76: 502 470 710 | K76: X | L76: X
A77: 26010123 | B77: AG | D77: xxxxxxxxx | E77: xxxxxxxxx | F77: 2694000,2694025, | G77: dareks32@wp.pl | H77: 603111442 | L77: X
A78: 26010942 | B78: AG | D78: xxxxxxxxx | E78: xxxxxxxxx | F78: 2694000,2694025, | G78: lukasz.sek@onet.pl | H78: 506694877 | L78: X
A79: 26010887 | B79: AG | D79: xxxxxxxxx | E79: xxxxxxxxx | F79: 2694000,2694025, | G79: tomasz.poplonski@awf.krakow.pl | I79: PL6750001952 | L79: X
A80: 26010284 | B80: AG | D80: xxxxxxxxx | E80: xxxxxxxxx | F80: 2694000,2694016, | G80: asnakademicka@gmail.com | H80: 502327009 | L80: X
A81: 26011548 | B81: AG | D81: xxxxxxxxx | E81: xxxxxxxxx | F81: 2694000,2694016, | G81: info@podroze4x4.pl | H81: 607 955 607 | I81: PL7381885512 | K81: X | L81: X
A82: 26011971 | B82: AG | D82: xxxxxxxxx | E82: xxxxxxxxx | F82: 2694000,2694016, | G82: sklep@xtreme-shop.pl | H82: 531 390 887 | I82: PL6412544356 | K82: X | L82: X
A83: 26011033 | B83: AG | D83: xxxxxxxxx | E83: xxxxxxxxx | F83: 2694000,2694017, | G83: wiertnicza@aktiv-sport.pl | H83: 22 842 06 40 | I83: PL5213165897 | K83: X | L83: X
A84: 26011916 | B84: AG | D84: xxxxxxxxx | E84: xxxxxxxxx | F84: 2694000,2694025, | G84: alan-matelski@wp.pl | H84: 604 210 434 | L84: X
A85: 26010322 | B85: AG | D85: xxxxxxxxx | E85: xxxxxxxxx | F85: 2694000,2694016, | G85: alicja@alda-sport.pl | H85: 664062460 | L85: X
A86: 26011592 | B86: AG | D86: xxxxxxxxx | E86: xxxxxxxxx | F86: 2694000,2694025, | G86: alik.kaczmarek@gmail.com | H86: 504102284 | L86: X
A87: 26011402 | B87: AG | D87: xxxxxxxxx | E87: xxxxxxxxx | F87: 2694000,2694050,2694025, | G87: Korzen88@o2.pl | H87: 501 537 006 | L87: X
A88: 26011206 | B88: AG | D88: xxxxxxxxx | E88: xxxxxxxxx | F88: 2694000,2694050, | G88: sadal.olo@wp.pl | H88: 602188080 | L88: X
A89: 26011227 | B89: AG | D89: xxxxxxxxx | E89: xxxxxxxxx | F89: 2694000,2694025, | G89: aleksander.trojanowicz@outlook.com | H89: 695 101 110 | L89: X
A90: 26011648 | B90: AG | D90: xxxxxxxxx | E90: xxxxxxxxx | F90: 2694000,2694050, | G90: aleksandrakocot10@gmail.com | H90: 789 372 160 | L90: X
A91: 26011161 | B91: AG | D91: xxxxxxxxx | E91: xxxxxxxxx | F91: 2694000,2694017, | G91: ola.majerczyk30@gmail.com | H91: 782973872 | L91: X
A92: 26012032 | B92: AG | D92: xxxxxxxxx | E92: xxxxxxxxx | F92: 2694000,2694025, | G92: srokakaro@gmail.com | H92: 509 788 796 | I92: PL5130199215 | L92: X
A93: 26011545 | B93: AG | D93: xxxxxxxxx | E93: xxxxxxxxx | F93: 2694000,2694025, | G93: alexander.sano@gmail.com | H93: 608031150 | L93: X
A94: 26010490 | B94: AG | D94: xxxxxxxxx | E94: xxxxxxxxx | F94: 2694000,2694025, | G94: aledocarsan@yahoo.com | H94: 517509422 | L94: X
A95: 26010662 | B95: AG | D95: xxxxxxxxx | E95: xxxxxxxxx | F95: 2694000,2694025, | G95: a.slipczynska@gmail.com | H95: 509 034 829 | L95: X
A96: 26011330 | B96: AG | D96: xxxxxxxxx | E96: xxxxxxxxx | F96: 2694000,2694025, | G96: przemek@marinajastarnia.pl | H96: 796 757 818 | I96: PL5252553988 | L96: X
A97: 26011387 | B97: AG | D97: xxxxxxxxx | E97: xxxxxxxxx | F97: 2694000,2694017, | G97: mariusz@amazingtravel.pl | H97: 503668183 | L97: X
A98: 26010587 | B98: AG | D98: xxxxxxxxx | E98: xxxxxxxxx | F98: 2694000,2694016, | G98: robert.metryka@wp.pl | H98: 662 252 053 | I98: PL9590556363 | K98: X | L98: X
A99: 26010455 | B99: AG | D99: xxxxxxxxx | E99: xxxxxxxxx | F99: 2694000,2694025, | G99: andrzej.chowaniec@interia.eu | H99: 664 082 207 | L99: X
A100: 26011057 | B100: AG | D100: xxxxxxxxx | E100: xxxxxxxxx | F100: 2694000,2694025, | G100: ahuczko@chem.uw.edu.pl | H100: 508221506 | L100: X
A101: 26011859 | B101: AG | D101: xxxxxxxxx | E101: xxxxxxxxx | F101: 2694000,2694016, | G101: andrzej-romanski@wp.pl | H101: 793 763 753 | I101: PL7341205669 | K101: X | L101: X
A102: 26010991 | B102: AG | D102: xxxxxxxxx | E102: xxxxxxxxx | F102: 2694000,2694025, | G102: astra22@onet.eu | H102: 502 841 882 | K102: X | L102: X
A103: 26010778 | B103: AG | D103: xxxxxxxxx | E103: xxxxxxxxx | F103: 2694000,2694016, | G103: anna.szymanska1@pl.ibm.com | L103: X
A104: 26010561 | B104: AG | D104: xxxxxxxxx | E104: xxxxxxxxx | F104: 2694000,2694017, | G104: biuro@ange.pl | H104: 603177260 | L104: X
A105: 26011570 | B105: AG | D105: xxxxxxxxx | E105: xxxxxxxxx | F105: 2694000,2694017, | G105: przemyslaw@himalayasport.pl | H105: 796 216 416 | I105: PL6792505404 | L105: X
A106: 26011054 | B106: AG | D106: xxxxxxxxx | E106: xxxxxxxxx | F106: 2694000,2694050, | G106: tbraniecki@wp.pl | H106: 513 001 810 | L106: X
A107: 26010542 | B107: AG | D107: xxxxxxxxx | E107: xxxxxxxxx | F107: 2694000,2694025, | G107: anetasitarz@gmail.com | H107: 660 978 909 | K107: X | L107: X
A108: 26011186 | B108: AG | D108: xxxxxxxxx | E108: xxxxxxxxx | F108: 2694000,2694017, | G108: aneta.szkola@dssmith.com | H108: 696898530 | L108: X
A109: 26011171 | B109: AG | D109: xxxxxxxxx | E109: xxxxxxxxx | F109: 2694000,2694016, | G109: biuro@funrace.pl | H109: 501 724 216 | L109: X
A110: 26011530 | B110: AG | D110: xxxxxxxxx | E110: xxxxxxxxx | F110: 2694000,2694016, | G110: ahilles@hotmail.com | H110: 604-952-967 | L110: X
A111: 26010579 | B111: AG | D111: xxxxxxxxx | E111: xxxxxxxxx | F111: 2694000,2694015, | G111: Anna.Maslyk@intersport.pl | H111: 600872659 | L111: X
A112: 26010759 | B112: AG | D112: xxxxxxxxx | E112: xxxxxxxxx | F112: 2694000,2694025, | G112: annapowaska@gmail.com | H112: 723 186 319 | L112: X
A113: 26011956 | B113: AG | D113: xxxxxxxxx | E113: xxxxxxxxx | F113: 2694000,2694016, | G113: anna.rajpold@gmail.com | H113: 602575700 | L113: X
A114: 26011086 | B114: AG | D114: xxxxxxxxx | E114: xxxxxxxxx | F114: 2694000,2694050, | G114: anna.stankiewicz@hotmail.com | H114: 503 035 233 | L114: X
A115: 26010965 | B115: AG | D115: xxxxxxxxx | E115: xxxxxxxxx | F115: 2694000,2694025, | G115: zawartka.anna@gmail.com | H115: 662 118 217 | L115: X
A116: 26012018 | B116: AG | D116: xxxxxxxxx | E116: xxxxxxxxx | F116: 2694000,2694050, | G116: headinstinct@spoko.pl | H116: 532 874 546 | L116: X
A117: 26010950 | B117: AG | D117: xxxxxxxxx | E117: xxxxxxxxx | F117: 2694000,2694050, | G117: Przemekzamorski@poczta.fm | H117: 601 459 540 | L117: X
A118: 26011169 | B118: AG | D118: xxxxxxxxx | E118: xxxxxxxxx | F118: 2694000,2694017, | G118: uszczakarek@gmail.com | H118: 661955084 | L118: X
A119: 26011953 | B119: AG | D119: xxxxxxxxx | E119: xxxxxxxxx | F119: 2694000,2694025, | G119: marcinsikorskii@wp.pl | H119: 789 451 330 | I119: PL9571121411 | L119: X
A120: 26010503 | B120: AG | D120: xxxxxxxxx | E120: xxxxxxxxx | F120: 2694000,2694050, | G120: pharam@wp.pl | H120: 501 195 499 | L120: X
A121: 26012029 | B121: AG | D121: xxxxxxxxx | E121: xxxxxxxxx | F121: 2694000,2694017, | G121: arturhaber@op.pl | H121: 504 920 710 | I121: PL7361573873 | L121: X
A122: 26010611 | B122: AG | D122: xxxxxxxxx | E122: xxxxxxxxx | F122: 2694000,2694050, | G122: kasperski@aluplast.com.pl | H122: 604 79 58 54 | L122: X
A123: 26010631 | B123: AG | D123: xxxxxxxxx | E123: xxxxxxxxx | F123: 2694000,2694025, | G123: artur@squashandmore.pl | I123: PL6262178133 | K123: X | L123: X
A124: 26011182 | B124: AG | D124: xxxxxxxxx | E124: xxxxxxxxx | F124: 2694000,2694017, | G124: asiaski24@gmail.com | H124: 601324603 | I124: PL5213393977 | K124: X | L124: X
A125: 26010852 | B125: AG | D125: xxxxxxxxx | E125: xxxxxxxxx | F125: 2694000,2694025, | G125: jola@atlanticsports.pl | H125: 502 322 606 | I125: PL6762282230 | L125: X
A126: 26010094 | B126: AG | D126: xxxxxxxxx | E126: xxxxxxxxx | F126: 2694000,2694016, | G126: jaroslaw_paja@yahoo.com | H126: 602245137 | I126: PL6771088987 | L126: X
A127: 26010096 | B127: AG | D127: xxxxxxxxx | E127: xxxxxxxxx | F127: 2694000,2694017, | G127: konrad@snowboard24.pl | H127: 606372608 | I127: PL6762266745 | L127: X
A128: 26011663 | B128: AG | D128: xxxxxxxxx | E128: xxxxxxxxx | F128: 2694000,2694025, | G128: martin.czakanski@gmail.com | H128: 697050509 | I128: PL6342756916 | L128: X
A129: 26011490 | B129: AG | D129: xxxxxxxxx | E129: xxxxxxxxx | F129: 2694000,2694017, | G129: md@bfc.pl | H129: 509 904 872 | I129: PL1132953275 | L129: X
A130: 26010486 | B130: AG | D130: xxxxxxxxx | E130: xxxxxxxxx | F130: 2694000,2694016, | G130: bikeandmike@googlemail.com | H130: 884 637 047 | I130: PL6112553463 | K130: X | L130: X
A131: 26010681 | B131: AG | D131: xxxxxxxxx | E131: xxxxxxxxx | F131: 2694000,2694025, | G131: wojciech.wrzol@bdm.pl | H131: 501 307 154 | L131: X
A132: 26011410 | B132: AG | D132: xxxxxxxxx | E132: xxxxxxxxx | F132: 2694000,2694016, | G132: kontakt@nowaosada.pl | H132: 601821150 | I132: PL5481052897 | L132: X
A133: 26011662 | B133: AG | D133: xxxxxxxxx | E133: xxxxxxxxx | F133: 2694000,2694017, | G133: craft.events.incentives@gmail.com | H133: 606781212 | I133: PL8952223473 | L133: X
A134: 26011447 | B134: AG | D134: xxxxxxxxx | E134: xxxxxxxxx | F134: 2694000,2694050, | G134: fakturyelektroniczne@bnpparibas.pl | I134: PL5261008546 | L134: X
A135: 26011787 | B135: AG | D135: xxxxxxxxx | E135: xxxxxxxxx | F135: 2694000,2694025, | G135: boardhouse.sklep@gmail.com | H135: 692 214 114 | I135: PL6792848009 | L135: X
A136: 26010596 | B136: AG | D136: xxxxxxxxx | E136: xxxxxxxxx | F136: 2694000,2694017, | G136: bojan@bojan.com.pl | H136: 601 42 88 26 | I136: PL9541369081 | L136: X
A137: 26011967 | B137: AG | D137: xxxxxxxxx | E137: xxxxxxxxx | F137: 2694000,2694017, | G137: a.szot@garbaruk.com | H137: 883008341 | L137: X
A138: 26012098 | B138: AG | D138: xxxxxxxxx | E138: xxxxxxxxx | F138: 2694000,2694025, | G138: biuro@bazasportgdynia.pl | H138: 535 020 090 | I138: PL5861774852 | K138: X | L138: X
A139: 26010083 | B139: AG | D139: xxxxxxxxx | E139: xxxxxxxxx | F139: 2694000,2694016, | G139: haski@ceti.com.pl | H139: 601417016 | L139: X
A140: 26011813 | B140: AG | D140: xxxxxxxxx | E140: xxxxxxxxx | F140: 2694000,2694025, | G140: korty@sunwaysport.com | H140: 798 301 055 | I140: PL8842749085 | L140: X
A141: 26011272 | B141: AG | D141: xxxxxxxxx | E141: xxxxxxxxx | F141: 2694000,2694025, | G141: biuro@sportstrade.pl | H141: 75 7323008 | L141: X
A142: 26010585 | B142: AG | D142: xxxxxxxxx | E142: xxxxxxxxx | F142: 2694000,2694016, | G142: m.szmytkowska@babyssecret.pl | H142: 508 547 561 | L142: X
A143: 26010751 | B143: AG | D143: xxxxxxxxx | E143: xxxxxxxxx | F143: 2694000,2694017, | G143: balticamedia@gmail.com | I143: PL8641721890 | L143: X
A144: 26011379 | B144: AG | D144: xxxxxxxxx | E144: xxxxxxxxx | F144: 2694000,2694050, | G144: biela@biela.net.pl | H144: 503-387-335 | L144: X
A145: 26011763 | B145: AG | D145: xxxxxxxxx | E145: xxxxxxxxx | F145: 2694000,2694025, | G145: marcin.stanuszek@gmail.com | H145: 506099009 | L145: X
A146: 26011018 | B146: AG | D146: xxxxxxxxx | E146: xxxxxxxxx | F146: 2694000,2694025, | G146: ciakbartosz@gmail.com | H146: 796422601 | L146: X
A147: 26011739 | B147: AG | D147: xxxxxxxxx | E147: xxxxxxxxx | F147: 2694000,2694025, | G147: poczta@globallsport.pl | H147: 693 664 999 | I147: PL5581740384 | K147: X | L147: X
A148: 26011083 | B148: AG | D148: xxxxxxxxx | E148: xxxxxxxxx | F148: 2694000,2694016, | G148: rookski@gmail.com | H148: 508294154 | L148: X
A149: 26011187 | B149: AG | D149: xxxxxxxxx | E149: xxxxxxxxx | F149: 2694000,2694050, | G149: Bart.krzem9@gmail.com | H149: 602 271 767 | L149: X
A150: 26011785 | B150: AG | D150: xxxxxxxxx | E150: xxxxxxxxx | F150: 2694000,2694025, | G150: bart911@interia.eu | H150: 510 356 547 | I150: PL5992592703 | L150: X
A151: 26011350 | B151: AG | D151: xxxxxxxxx | E151: xxxxxxxxx | F151: 2694000,2694025, | G151: roslonski.bartosz@gmail.com | H151: 505029821 | L151: X
A152: 26010951 | B152: AG | D152: xxxxxxxxx | E152: xxxxxxxxx | F152: 2694000,2694050, | G152: tomsur@mp.pl | H152: 606 769 903 | L152: X
A153: 26011080 | B153: AG | D153: xxxxxxxxx | E153: xxxxxxxxx | F153: 2694000,2694025, | G153: bwieczorek@zbmzdrowie.pl | H153: 607 080 402 | L153: X
A154: 26010507 | B154: AG | D154: xxxxxxxxx | E154: xxxxxxxxx | F154: 2694000,2694050, | G154: bartekwojnar@interia.pl | H154: 886669699 | L154: X
A155: 26011805 | B155: AG | D155: xxxxxxxxx | E155: xxxxxxxxx | F155: 2694000,2694016, | G155: wyciagi.bartus@gmail.com | H155: 506 659 177 | I155: PL8831860991 | L155: X
A156: 26010846 | B156: AG | D156: xxxxxxxxx | E156: xxxxxxxxx | F156: 2694000,2694017, | G156: nartyolsztyn@wp.pl | H156: + 48 600 016 350 | I156: PL7640008215 | K156: X | L156: X
A157: 26011417 | B157: AG | D157: xxxxxxxxx | E157: xxxxxxxxx | F157: 2694000,2694025, | G157: guga11@wp.pl | H157: 501 308 069 | L157: X
A158: 26010654 | B158: AG | D158: xxxxxxxxx | E158: xxxxxxxxx | F158: 2694000,2694016, | G158: szkola@ptak-team.pl | H158: 601 501 423 | K158: X | L158: X
A159: 26011670 | B159: AG | D159: xxxxxxxxx | E159: xxxxxxxxx | F159: 2694000,2694016, | G159: btyrpa84@gmail.com | H159: 666 611 862 | L159: X
A160: 26010575 | B160: AG | D160: xxxxxxxxx | E160: xxxxxxxxx | F160: 2694000,2694025, | G160: j.stoklosa@pl.head.com | H160: 512 962 901 | L160: X
A161: 26012121 | B161: AG | D161: xxxxxxxxx | E161: xxxxxxxxx | F161: 2694000, | G161: sadowska.beata@gmail.com | H161: 608 033 034 | I161: PL5241798203 | K161: X | L161: X
A162: 26011509 | B162: AG | D162: xxxxxxxxx | E162: xxxxxxxxx | F162: 2694000,2694050, | G162: biuro@wspolnyswiat.com.pl | H162: 501 174 592 | L162: X
A163: 26010380 | B163: AG | D163: xxxxxxxxx | E163: xxxxxxxxx | F163: 2694000,2694017, | G163: delta_technika@onet.eu | L163: X
A164: 26010770 | B164: AG | D164: xxxxxxxxx | E164: xxxxxxxxx | F164: 2694000,2694025, | G164: benbudziak@me.com | H164: 511 102 102 | L164: X
A165: 26011432 | B165: AG | D165: xxxxxxxxx | E165: xxxxxxxxx | F165: 2694000,2694016, | G165: bergsport@bergsport.pl | H165: 501 398 986 | I165: PL8951435368 | L165: X
A166: 26010389 | B166: AG | D166: xxxxxxxxx | E166: xxxxxxxxx | F166: 2694000,2694016, | G166: biuro@albaw.pl | H166: 602752564 | L166: X
A167: 26011157 | B167: AG | D167: xxxxxxxxx | E167: xxxxxxxxx | F167: 2694000,2694017, | G167: hryniszyn@onet.pl | H167: 577 019 493 | L167: X
A168: 26011002 | B168: AG | D168: xxxxxxxxx | E168: xxxxxxxxx | F168: 2694000,2694017, | G168: jurasowka@gmail.com | H168: 604084695 | L168: X
A169: 26011842 | B169: AG | D169: xxxxxxxxx | E169: xxxxxxxxx | F169: 2694000,2694017, | G169: serwis@bikeandski.pl | H169: 883114343 | I169: PL7740021480 | K169: X | L169: X
A170: 26010087 | B170: AG | D170: xxxxxxxxx | E170: xxxxxxxxx | F170: 2694000,2694017, | G170: faktury@bikershop.pl | H170: 602323923 | K170: X | L170: X
A171: 26011810 | B171: AG | D171: xxxxxxxxx | E171: xxxxxxxxx | F171: 2694000,2694016, | G171: krzysztof@snowsense.pl | H171: 606 456 012 | I171: PL7342533766 | L171: X
A172: 26011356 | B172: AG | D172: xxxxxxxxx | E172: xxxxxxxxx | F172: 2694000,2694017, | G172: sklep.bikeshop@gmail.com | H172: 604 907 305 | I172: PL5170385823 | K172: X | L172: X
A173: 26012088 | B173: AG | D173: xxxxxxxxx | E173: xxxxxxxxx | F173: 2694000,2694016, | G173: mkarpinski@almatur.pl | H173: 501 504 028 | I173: PL5260304320 | L173: X
A174: 26010031 | B174: AG | D174: xxxxxxxxx | E174: xxxxxxxxx | F174: 2694000,2694016, | G174: biuro@startbeskid.pl | H174: 602692845 | L174: X
A175: 26011031 | B175: AG | D175: xxxxxxxxx | E175: xxxxxxxxx | F175: 2694000,2694025, | G175: piotr.szumilewicz@gmail.com | H175: 602350748 | I175: PL5862282973 | K175: X | L175: X
A176: 26010147 | B176: AG | D176: xxxxxxxxx | E176: xxxxxxxxx | F176: 2694000,2694017, | G176: michal.slabon@hitsport.pl | H176: 602346732 | I176: PL7342552410 | L176: X
A177: 26010429 | B177: AG | D177: xxxxxxxxx | E177: xxxxxxxxx | F177: 2694000,2694017, | G177: grzegorz.bieda@gmail.com | K177: X | L177: X
A178: 26010153 | B178: AG | D178: xxxxxxxxx | E178: xxxxxxxxx | F178: 2694000,2694016, | G178: mcison@gmail.com | H178: 604799947 | L178: X
A179: 26010231 | B179: AG | D179: xxxxxxxxx | E179: xxxxxxxxx | F179: 2694000,2694025, | G179: tenis_club_piter_play@vp.pl | H179: 602866640 | L179: X
A180: 26011698 | B180: AG | D180: xxxxxxxxx | E180: xxxxxxxxx | F180: 2694000,2694025, | G180: sklep@sklepzdeskami.pl | H180: 694913010 | I180: PL7810041388 | K180: X | L180: X
A181: 26011624 | B181: AG | D181: xxxxxxxxx | E181: xxxxxxxxx | F181: 2694000,2694050, | G181: jolarusin@hotmail.com | H181: 609 491 934 | L181: X
A182: 26011391 | B182: AG | D182: xxxxxxxxx | E182: xxxxxxxxx | F182: 2694000,2694050, | G182: bogdan@panorama777.pl | H182: 696 469 031 | L182: X
A183: 26010974 | B183: AG | D183: xxxxxxxxx | E183: xxxxxxxxx | F183: 2694000,2694016, | G183: pietrykowski@gmail.com | H183: 601 474 498 | I183: PL8982122593 | K183: X | L183: X
A184: 26011256 | B184: AG | D184: xxxxxxxxx | E184: xxxxxxxxx | F184: 2694000,2694050, | G184: boleslawszmyd@tlen.pl | H184: 509 694 112 | L184: X
A185: 26011135 | B185: AG | D185: xxxxxxxxx | E185: xxxxxxxxx | F185: 2694000,2694025, | G185: bozenaslowik1@gmail.com | H185: 691 554 205 | L185: X
A186: 26011757 | B186: AG | D186: xxxxxxxxx | E186: xxxxxxxxx | F186: 2694000,2694025, | G186: brossport@op.pl | H186: 666378686 | L186: X
A187: 26010324 | B187: AG | D187: xxxxxxxxx | E187: xxxxxxxxx | F187: 2694000,2694017, | G187: bfc@bfc.com.pl | H187: 48 022 670 01 25 | I187: PL1132288317 | L187: X
A188: 26011471 | B188: AG | D188: xxxxxxxxx | E188: xxxxxxxxx | F188: 2694000,2694025, | G188: bernatowicz.d@gmail.com | H188: 506 141 926 | K188: X | L188: X
A189: 26011736 | B189: AG | D189: xxxxxxxxx | E189: xxxxxxxxx | F189: 2694000,2694050, | G189: transjet@transjet.pl | H189: 665 096 999 | L189: X
A190: 26012087 | B190: AG | D190: xxxxxxxxx | E190: xxxxxxxxx | F190: 2694000,2694025, | G190: adampajestka@tlen.pl | H190: 509 685 880 | I190: PL1990124344 | K190: X | L190: X
A191: 26010024 | B191: AG | D191: xxxxxxxxx | E191: xxxxxxxxx | F191: 2694000,2694016, | G191: krzysztof.klecha@centrumrowerowe.pl | H191: 530907888 | I191: PL9532634721 | K191: X | L191: X
A192: 26010877 | B192: AG | D192: xxxxxxxxx | E192: xxxxxxxxx | F192: 2694000,2694017, | G192: tomaszlysak@icloud.com | H192: 500826706 | L192: X
A193: 26010620 | B193: AG | D193: xxxxxxxxx | E193: xxxxxxxxx | F193: 2694000,2694016, | G193: mosicka@interia.pl | H193: 509649125 | I193: PL5531002276 | L193: X
A194: 26011853 | B194: AG | D194: xxxxxxxxx | E194: xxxxxxxxx | F194: 2694000,2694017, | G194: info.slonecznadolina@gmail.com | H194: 607 741 843 | L194: X
A195: 26012048 | B195: AG | D195: xxxxxxxxx | E195: xxxxxxxxx | F195: 2694000,2694025, | G195: bocian@centrumbocian.pl | H195: 501 638 514 | L195: X
A196: 26010957 | B196: AG | D196: xxxxxxxxx | E196: xxxxxxxxx | F196: 2694000,2694016, | G196: remikslawik@o2.pl | H196: 880 300 777 | I196: PL8811483953 | L196: X
A197: 26011962 | B197: AG | D197: xxxxxxxxx | E197: xxxxxxxxx | F197: 2694000,2694016, | G197: biuro@vip-ski.pl | H197: 507124829 | I197: PL8943085853 | K197: X | L197: X
A198: 26010209 | B198: AG | D198: xxxxxxxxx | E198: xxxxxxxxx | F198: 2694000,2694017, | G198: adamkasiarz@op.pl | H198: 504003239 | I198: PL7351559127 | L198: X
A199: 26010171 | B199: AG | D199: xxxxxxxxx | E199: xxxxxxxxx | F199: 2694000,2694017, | G199: pawel.tarapacki@pgnig.pl | H199: 668465450 | I199: PL1230039733 | L199: X
A200: 26011837 | B200: AG | D200: xxxxxxxxx | E200: xxxxxxxxx | F200: 2694000,2694025, | G200: tenis@come-on.pl | H200: 696 024 633 | I200: PL8961546796 | K200: X | L200: X
... 2269 more rows
